{"text_format":"5","workbook":"xlsx","n_sheets":6,"sheets":["Összesítő - I. ütem","I. ÜTEM -VÍZELLÁTÁS-CSATORNÁZÁS","I. ÜTEM - FŰTÉS","I. ÜTEM - HŰTÉS","I. ÜTEM - LÉGTECHNIKA","I. ÜTEM - GÁZELLÁTÁS"],"props":{"creator":"user","last_modified_by":"user"},"not_rendered":{"defined_names":1},"read":"whole","wrapped":"gz","date_system":"1900"}

{"sheet":"Összesítő - I. ütem","index":0,"n_rows":24,"n_cols":6,"rows_kept":24,"merged":[[21,2,21,6],[22,2,22,6],[23,2,23,6]]}
[]
[]
[]
[]
[null,"Veresegyházi Katolikus Gimnázium"]
[null,"2112 Veresegyház, Fő út 117-125.\nhrsz.: 58\n\n"]
[]
[]
[null,"ÉPÜLETGÉPÉSZET"]
[null,"AJÁNLATADÁSI TERV - I. ÜTEM"]
[null,"ÁRAZATLAN KÖLTSÉGVETÉS"]
[]
[]
[null,"Munkanem megnevezése","Anyag",null,null,"Díj"]
[null,"Vízellátás - csatornázás",{"$f":"'I. ÜTEM -VÍZELLÁTÁS-CSATORNÁZÁS'!H316","v":{"v":0,"d":"0 Ft"}},null,null,{"$f":"'I. ÜTEM -VÍZELLÁTÁS-CSATORNÁZÁS'!I316","v":{"v":0,"d":"0 Ft"}}]
[null,"Fűtés",{"$f":"'I. ÜTEM - FŰTÉS'!H315","v":{"v":0,"d":"0 Ft"}},null,null,{"$f":"'I. ÜTEM - FŰTÉS'!I315","v":{"v":0,"d":"0 Ft"}}]
[null,"Hűtés",{"$f":"'I. ÜTEM - HŰTÉS'!H91","v":{"v":0,"d":"0 Ft"}},null,null,{"$f":"'I. ÜTEM - HŰTÉS'!I91","v":{"v":0,"d":"0 Ft"}}]
[null,"Légtechnika",{"$f":"'I. ÜTEM - LÉGTECHNIKA'!H120","v":{"v":0,"d":"0 Ft"}},null,null,{"$f":"'I. ÜTEM - LÉGTECHNIKA'!I120","v":{"v":0,"d":"0 Ft"}}]
[null,"Gázellátás",{"$f":"'I. ÜTEM - GÁZELLÁTÁS'!H143","v":{"v":0,"d":"0 Ft"}},null,null,{"$f":"'I. ÜTEM - GÁZELLÁTÁS'!I143","v":{"v":0,"d":"0 Ft"}}]
[]
[null,"Összesen",{"$f":"SUM(C15:C19)","v":{"v":0,"d":"0 Ft"}},null,null,{"$f":"SUM(F15:F19)","v":{"v":0,"d":"0 Ft"}}]
[null,"Mindösszesen ÁFA nélkül",{"$f":"SUM(C21,F21)","v":{"v":0,"d":"0 Ft"}}]
[null,"27% ÁFA",{"$f":"C22*0.27","v":{"v":0,"d":"0 Ft"}}]
[null,"Mindösszesen ÁFA-val",{"$f":"C22+C23","v":{"v":0,"d":"0 Ft"}}]

{"sheet":"I. ÜTEM -VÍZELLÁTÁS-CSATORNÁZÁS","index":1,"n_rows":316,"n_cols":9,"rows_kept":316,"headers":{"header":["VERESEGYHÁZI KATOLIKUS GIMNÁZIUM 2112 Veresegyház, Fő út 117-125., hrsz.: 58 AJÁNLATADÁSI TERV","","2017.08.11."],"footer":["TEVIM Kft."]}}
["No.","  Azonosító","  Szöveg","Mennyiség","Egys.","Anyagár","Óradij","xAnyagár","xÓradij"]
[]
[null,null,"SZANITER BERENDEZÉSEK                                                      FALIKÚT BERENDEZÉS                                              Falikút, kiöntő vagy mosóvályú elhelyezése és bekötése, falikút, szifon (bűzelzáró) és csaptelep nélkül, fali kiöntő, szifon (bűzelzáró) és tartozékok nélkül, acéllemezből vagy öntöttvasból"]
[1,"82-009-1.2-0313641","Fali kiöntő rozsdamentes lemezből, leeresztőszeleppel, szifon és csaptelep nélkül, R: B&K WB440C",2,"db",0,0,{"$f":"IF(D4=0,\"\",D4*F4)","v":0},{"$f":"IF(D4=0,\"\",D4*G4)","v":0}]
[{"$nulls":7},{"$f":"IF(D5=0,\"\",D5*F5)","v":""},{"$f":"IF(D5=0,\"\",D5*G5)","v":""}]
[null,null,"Egyoldalon menetes szerelvény elhelyezése, külső vagy belső menettel, illetve hollandival csatlakoztatva DN 15 légtelenítőszelep, kifolyó- és locsolószelep, töltőszelep"]
[2,"82-001-6.2.8-0110804","MOFÉM kifolyószelep, gyorscsatlakozóval, légbeszívóval 1/2\" sárgaréz, krómozott, 10 bar, Kód: 162-0007-00",4,"db",0,0,0,0]
[]
[null,null,"Kétoldalon menetes vagy roppantógyűrűs szerelvény elhelyezése, külső vagy belső menettel, illetve hollandival csatlakoztatva DN 15 szelepek, csappantyúk (szabályzó, folytó-elzáró, beavatkozó)",{"$nulls":4},{"$f":"IF(D9=0,\"\",D9*F9)","v":""},{"$f":"IF(D9=0,\"\",D9*G9)","v":""}]
[3,"82-001-7.2.1-0110911","MOFÉM csempeszelep kék, 1/2\", Kód: 164-0014-00",2,"db",0,0,0,0]
[]
[4,"82-001-7.2.1-0110912","MOFÉM csempeszelep piros, 1/2\", Kód: 164-0015-00",2,"db",0,0,0,0]
[]
[null,null,"Vizes berendezési tárgyak bűzelzáróinak felszerelése, falikúthoz-mosogatóhoz DN 50"]
[5,"82-009-31.1.2-0135004","HL100G/50, Konyhai szifon DN50 x 6/4\", gömbcsuklóval",2,"db",0,0,0,0]
[]
[null,null,"MOSDÓ (tantermekben)                                                                           Mosdó vagy mosómedence berendezés elhelyezése és bekötése, kifolyószelep, bűzelzáró és sarokszelep nélkül, ráépíthető mosdó 60x35 cm, 1 csaplyukkal középen,"]
[6,"K-tétel","MARMY Serena típ.",8,"db",0,0,0,0]
[]
[null,null,"Csaptelepek és szerelvényeinek felszerelése, mosdócsaptelepek, álló illetve süllyesztett mosdócsaptelep"]
[7,"82-009-19.3.2-0318062","MOFÉM Mambó-5 egykaros mosdócsaptelep, ECO kerámia vezérlőegység forrázás elleni védelemmel, kr. leeresztőszeleppel, kód: 150-0034-00",8,"db",0,0,0,0]
[]
[null,null,"Berendezési tárgyak szerelvényeinek felszerelése, sarokszelep szerelés"]
[8,"82-009-17.1-0110161","MOFÉM sárgaréz sarokszelep 1/2\"-1/2\" sárgaréz, krómozott, 10 bar, Kód: 163-0002-00",16,"db",0,0,0,0]
[]
[null,null,"Vizes berendezési tárgyak bűzelzáróinak felszerelése, falikúthoz-mosogatóhoz mosdóhoz, bidéhez"]
[9,"82-009-31.2-0130629","MOFÉM csőszifon leeresztő szelep nélkül, állítható, krómozott, Kód: 165-0027-05",8,"db",0,0,0,0]
[]
[null,null,"Tantermi mosdók víz és csatorna bekötése:                                             - átm.16-20-25-ös méretű Uponor MLCP típ. vízvezetékek, idomokkal                                                                         - vízvezetékek szigetelése TUBOLIT DG típ. hőszigeteléssel, 9-13mm vast.                                                                  - átm.40-50mm méretű KA-PVC csatorna vezetékek, idomokkal"]
[10,"K-tétel",null,1,"klt.",0,0,0,0]
[]
[null,null,"MOSDÓ (vizesblokkokban)                                                                        Mosdó vagy mosómedence berendezés elhelyezése és bekötése, kifolyószelep, bűzelzáró és sarokszelep nélkül, pultba süllyeszthető mosdó 56 x 47,5 cm, 1 csaplyukkal középen,"]
[11,"K-tétel","JIKA IBON 813011 típ.",30,"db",0,0,0,0]
[]
[null,null,"Csaptelepek és szerelvényeinek felszerelése, mosdócsaptelepek, álló illetve süllyesztett mosdócsaptelep"]
[12,"82-009-19.3.2-0318062","MOFÉM Mambó-5 egykaros mosdócsaptelep, ECO kerámia vezérlőegység forrázás elleni védelemmel, kr. leeresztőszeleppel, kód: 150-0034-00",30,"db",0,0,0,0]
[]
[null,null,"Berendezési tárgyak szerelvényeinek felszerelése, sarokszelep szerelés"]
[13,"82-009-17.1-0110161","MOFÉM sárgaréz sarokszelep 1/2\"-1/2\" sárgaréz, krómozott, 10 bar, Kód: 163-0002-00",60,"db",0,0,0,0]
[]
[null,null,"Vizes berendezési tárgyak bűzelzáróinak felszerelése, falikúthoz-mosogatóhoz mosdóhoz, bidéhez"]
[14,"82-009-31.2-0130629","MOFÉM csőszifon leeresztő szelep nélkül, állítható, krómozott, Kód: 165-0027-05",30,"db",0,0,0,0]
[]
[null,null,"MOSDÓ (általános helyekre)                                                           Mosdó vagy mosómedence berendezés elhelyezése és bekötése, kifolyószelep, bűzelzáró és sarokszelep nélkül, falra szerelhető porcelán kivitelben (komplett)"]
[15,"82-009-5.1-0112781","ALFÖLDI/BÁZIS porcelán mosdó, 60 cm, 1 csaplyukkal, fúrt, fehér, Kód: 4191 60",2,"db",0,0,0,0]
[]
[null,null,"Csaptelepek és szerelvényeinek felszerelése, mosdócsaptelepek, álló illetve süllyesztett mosdócsaptelep"]
[16,"82-009-19.3.2-0318062","MOFÉM Mambó-5 egykaros mosdócsaptelep, ECO kerámia vezérlőegység forrázás elleni védelemmel, kr. leeresztőszeleppel, kód: 150-0034-00",2,"db",0,0,0,0]
[]
[null,null,"Berendezési tárgyak szerelvényeinek felszerelése, sarokszelep szerelés"]
[17,"82-009-17.1-0110161","MOFÉM sárgaréz sarokszelep 1/2\"-1/2\" sárgaréz, krómozott, 10 bar, Kód: 163-0002-00",4,"db",0,0,0,0]
[]
[null,null,"Vizes berendezési tárgyak bűzelzáróinak felszerelése, falikúthoz-mosogatóhoz mosdóhoz, bidéhez"]
[18,"82-009-31.2-0130629","MOFÉM csőszifon leeresztő szelep nélkül, állítható, krómozott, Kód: 165-0027-05",2,"db",0,0,0,0]
[]
[null,null,"Kézmosó berendezés elhelyezése és bekötése, kifolyószelep, sarokszelep, szifontakaró és bűzelzáró nélkül, porcelán kivitelben"]
[19,"82-009-6.1-0117061","ALFÖLDI/SAVAL porcelán kézmosó 45 cm, 1 csaplyukkal, fúrt, fehér, Kód: 7035 25",2,"db",0,0,0,0]
[]
[null,null,"Csaptelepek és szerelvényeinek felszerelése, mosdócsaptelepek, álló illetve süllyesztett mosdócsaptelep"]
[20,"82-009-19.3.2-0318062","MOFÉM Mambó-5 egykaros mosdócsaptelep, ECO kerámia vezérlőegység forrázás elleni védelemmel, kr. leeresztőszeleppel, kód: 150-0034-00",2,"db",0,0,0,0]
[]
[null,null,"Berendezési tárgyak szerelvényeinek felszerelése, sarokszelep szerelés"]
[21,"82-009-17.1-0110161","MOFÉM sárgaréz sarokszelep 1/2\"-1/2\" sárgaréz, krómozott, 10 bar, Kód: 163-0002-00",4,"db",0,0,0,0]
[]
[null,null,"Vizes berendezési tárgyak bűzelzáróinak felszerelése, falikúthoz-mosogatóhoz mosdóhoz, bidéhez"]
[22,"82-009-31.2-0130629","MOFÉM csőszifon leeresztő szelep nélkül, állítható, krómozott, Kód: 165-0027-05",2,"db",0,0,0,0]
[]
[null,null,"MOSOGATÓ (egymedencés)                                                         Mosogató elhelyezése és bekötése, hideg-meleg vízre, háztartási mosogatók, csaptelep és bűzelzáró nélkül, bútorba beépített,"]
[23,"K-tétel","Gránit háztartási mosogató, egymedencés 1/2 csepptálcával, 345 x 430 x 200 mm Teka Astral 45 B TG típ.",2,"db",0,0,0,0]
[]
[null,null,"Csaptelepek és szerelvényeinek felszerelése, mosogató csaptelepek, álló, illetve süllyesztett mosogató csaptelep"]
[24,"82-009-19.5.2-0318266","MOFÉM TREND PLUS álló mosogató csaptelep, forgatható felső kifolyócsővel, kifolyócső 190mm, kód: 152-1551-00",2,"db",0,0,0,0]
[{"$nulls":7},{"$f":"IF(D73=0,\"\",D73*F73)","v":""},{"$f":"IF(D73=0,\"\",D73*G73)","v":""}]
[null,null,"Berendezési tárgyak szerelvényeinek felszerelése, sarokszelep szerelés"]
[25,"82-009-17.1-0110162","MOFÉM sárgaréz sarokszelep 1/2\"-3/8\" sárgaréz, krómozott, 10 bar, Kód: 163-0006-00",2,"db",0,0,0,0]
[]
[null,null,"Berendezési tárgyak szerelvényeinek felszerelése, kombinált sarokszelep szerelés"]
[26,"82-009-17.2-0130623","MOFÉM kombinált sarokszelep 1/2\"-3/8\"-3/4\" csatlakozással, krómozott, Kód: 163-0015-01",2,"db",0,0,0,0]
[]
[null,null,"Vizes berendezési tárgyak bűzelzáróinak felszerelése, falikúthoz-mosogatóhoz DN 50"]
[27,"82-009-31.1.2-0135002","HL100/50, Konyhai szifon DN50 x 6/4\", gömbcsuklóval és visszacsapó szelepes mosógép csatlakozóval",2,"db",0,0,0,0]
[]
[null,null,"Mosogató víz és csatorna bekötése: - átm.16-20-25-ös méretű Uponor MLCP típ. vízvezetékek, idomokkal - vízvezetékek szigetelése TUBOLIT DG típ. hőszigeteléssel, 9-13mm vast. - átm.40-50mm méretű KA-PVC csatorna vezetékek, idomokkal"]
[28,"K-tétel",null,1,"klt.",0,0,0,0]
[]
[null,null,"MOSOGATÓ (kétmedencés, karbantartóba, kerti raktárba)                                                                                           Mosogató elhelyezése és bekötése, hideg-meleg vízre, nagykonyhai (ipari) mosogató, csaptelep nélkül, bűzelzáróval, lábazattal, kétmedencés"]
[29,"82-009-2.2.2.3-0313661","B&K kétmedencés rozsdamentes mosogató 400x400x250 mm-es medencével, lábazattal, szifonnal, 1000x600x850 mm külmérettel, R: BK21201",2,"db",0,0,0,0]
[]
[null,null,"Csaptelepek és szerelvényeinek felszerelése, mosogató csaptelepek, álló, illetve süllyesztett mosogató csaptelep"]
[30,"82-009-19.5.2-0318266","MOFÉM TREND PLUS álló mosogató csaptelep, forgatható felső kifolyócsővel, kifolyócső 190mm, kód: 152-1551-00",2,"db",0,0,0,0]
[]
[null,null,"Berendezési tárgyak szerelvényeinek felszerelése, sarokszelep szerelés"]
[31,"82-009-17.1-0110162","MOFÉM sárgaréz sarokszelep 1/2\"-3/8\" sárgaréz, krómozott, 10 bar, Kód: 163-0006-00",2,"db",0,0,0,0]
[]
[null,null,"Berendezési tárgyak szerelvényeinek felszerelése, kombinált sarokszelep szerelés"]
[32,"82-009-17.2-0130623","MOFÉM kombinált sarokszelep 1/2\"-3/8\"-3/4\" csatlakozással, krómozott, Kód: 163-0015-01",2,"db",0,0,0,0]
[]
[null,null,"Mosogató víz és csatorna bekötése: - átm.16-20-25-ös méretű Uponor MLCP típ. vízvezetékek, idomokkal - vízvezetékek szigetelése TUBOLIT DG típ. hőszigeteléssel, 9-13mm vast. - átm.40-50mm méretű KA-PVC csatorna vezetékek, idomokkal"]
[33,"K-tétel",null,1,"klt.",0,0,0,0]
[]
[null,null,"WC BERENDEZÉS                                                                                           WC csésze elhelyezése és bekötése, öblítőtartály, sarokszelep, WC ülőke, nyomógomb nélkül, porcelánból, fali WC csésze, mélyöblítésű kivitelben"]
[34,"K-tétel","JIKA LYRA PLUS 823380 típ. porcelán mélyöblítésű WC csésze, hátsó kifolyású, falra szerelhető, fehér",31,"db",0,0,0,0]
[]
[null,null,"WC-csésze kiegészítő szerelvényeinek elhelyezése, WC-ülőke"]
[35,"K-tétel","JIKA LYRA PLUS",31,"db",0,0,0,0]
[]
[null,null,"WC öblítőtartály felszerelése és bekötése, szerelőelemes (működtető elem nélkül) falba építhető"]
[36,"82-009-13.6.2-0121003","VALSIR Winner falsík alatti WC tartály függesztett WC-hez, álló, keretes, mechanikus, 150x500x1140, Cikkszám: VS863602",31,"db",0,0,0,0]
[]
[null,null,"WC-csésze kiegészítő szerelvényeinek elhelyezése, WC csatlakozó, WC nyomólapok és tartozékai"]
[37,"82-009-12.5-0121039","VALSIR nyomólap Winner és Tropea tartályokhoz, műanyag, két öblítési mennyiség, fehér színben, Cikkszám: VS870501",31,"db",0,0,0,0]
[]
[null,null,"VIZELDE                                                                                                 Vizelde vagy piszoár berendezés elhelyezése, öblítőszelep, sarokszelep és bűzelzáró nélkül, porcelán, falra szerelhető vizelde"]
[38,"K-tétel","JIKA GOLEM 843061 leszívó rendszerű, külső vízbevezetéssel, öblítés vezérlés nélkül",18,"db",0,0,0,0]
[]
[null,null,"Vizelde kiegészítő elemei, öblítőszelep, nyomógombos"]
[39,"82-009-16.2.1-0110903","MOFÉM automata vizelde öblítőszelep, Kód: 166-0008-00",18,"db",0,0,0,0]
[]
[null,null,"Hátsó kifolyású vizelde szifon, NÁ50 csatlakozással felszerelve, V&B ALFÖLDI által forgalmazva,"]
[40,"K-tétel","cikkszám: 9326 00 00",18,"db",0,0,0,0]
[]
[null,null,"ZUHANYZÓ (épített)                                                                            Csaptelepek és szerelvényeinek felszerelése, zuhanycsaptelepek, fali zuhanycsaptelep"]
[41,"82-009-19.2.1-0318261","MOFÉM Trend2 egykaros zuhanycsaptelep, kr. állítható fali zuhanytartóval, kézizuhannyal, kód: 153-1301-00",1,"db",0,0,0,0]
[]
[null,null,"Kétoldalon menetes vagy roppantógyűrűs szerelvény elhelyezése, külső vagy belső menettel, illetve hollandival csatlakoztatva DN 15 szelepek, csappantyúk (szabályzó, folytó-elzáró, beavatkozó)"]
[42,"82-001-7.2.1-0110911","MOFÉM csempeszelep kék, 1/2\", Kód: 164-0014-00",1,"db",0,0,0,0]
[]
[43,"82-001-7.2.1-0110912","MOFÉM csempeszelep piros, 1/2\", Kód: 164-0015-00",1,"db",0,0,0,0]
[]
[null,null,"Padló alatti illetve falba süllyeszthető bűzelzáró, padló alatti 1, 2, 3 ágú elhelyezése"]
[44,"82-009-21.1-0135301","HL510NPr, Padlólefolyó DN40/50 vízszintes csatlakozóval, szigetelő karimával, \"Primus\" kiszáradás-védett vízbűzzárral, 123x123 mm műanyag rácstartóval, 115x115 mm nemesacél ráccsal, a csempézés idejére merevítő védőfedéllel. Terhelhetőség: 300kg",1,"db",0,0,0,0]
[]
[null,null,"GÉPÉSZETI BERENDEZÉSEK                                                               Álló melegvíz-termelő, beépített hőcserélő nélkül. A belső felületvédelem kétrétegű beégetett zománcozás. Hőszigetelt burkolat. Beépített magnézium védőanóddal. Csatlakozási lehetőség pótfűtések részére (240mm karima, 6/4\" menetes csonk) Cirkulációs vezeték csatlakozás."]
[45,"K-tétel","HOVAL S 800 P típ., 800 literes HMV tároló",1,"db",0,0,0,0]
[]
[null,null,"Szerelt, tömített lemezes hőcserélő, használati melegvíz készítéshez; 150 kW hőteljesítmény"]
[46,"K-tétel","TRANTER GLP-008-M-4-PI-34-1.4401-NBR (P) 4 x 1 1/4\"",1,"db",0,0,{"$f":"IF(D137=0,\"\",D137*F137)","v":0},{"$f":"IF(D137=0,\"\",D137*G137)","v":0}]
[]
[null,null,"Fali tűzcsapszekrény elhelyezése, tartozékokkal összeszerelve, oltó vízvezetékhez, falba süllyesztve, előre kialakított falfülkébe, 1\" (25 szerelvényekkel)"]
[47,"82-021-1.3.1.2-0210415","Csolnoki Szerelvénygyártó V1-D 800x650x250 mm tűzcsapszekrény, CE min., tömlőtartó dobbal, 30 m tömlővel, vízbekötés: 4 előre perf. hely. falba süllyesztett, Csz.: 01 8800 0990 02",4,"db",0,0,0,0]
[]
[null,null,"Palackos kézi tűzoltókészülék falra szerelve, fém vagy műanyag függesztőre porral oltó 6-12 kg töltősúlyig"]
[48,"82-016-10.1.2-0210511","Csolnoki Szerelvénygyártó poroltó 6 kg-os ABC típus, Csz.: 05 0011 0005 00",4,"db",0,0,0,0]
[]
[null,null,"Vízszűrő elhelyezése és bekötése, visszamosható szűrőbetéttel, kézi visszaöblítéssel, kétoldalon menetes csatlakozással, DN 50"]
[49,"82-031-1.1.1.1.5-0557124","BWT Infinity M 2\" nagyteljesítményű visszaöblíthető központi védőszűrő 12 m3/h",1,"db",0,0,0,0]
[]
[null,null,"Kétoldalon karimás szerelvény elhelyezése ellenkarimákkal, DN 50 PN 10 - PN 40, szelepek, csappantyúk (szabályzó, folytó-elzáró, beavatkozó)"]
[50,"82-001-2.14.1-0342057","Honeywell nyomásszabályozó, tehermentesített szelep, DN50, karimás, 1,5..6bar, PN16, max 70°C, (kvs=28), D15P-50A",1,"db",0,0,0,0]
[]
[null,null,"Elektro-fizikai háztartási vízkőmentesítő berendezés elhelyezése és bekötése, ivó és használati melegvizek kezelésére, kétoldalon menetes csatlakozással, DN 40"]
[51,"82-031-19.1.2-0557003","BWT AQA Total ENERGY 5600, elektro-fizikai vízkőmentesítő berendezés, integrált elektronikus vezérléssel, fali állványra szerelve, 5,6 m3/h",1,"db",0,0,0,0]
[]
[null,null,"Változó nyomású zárt tágulási tartály ivóvizes-, nyomásemelő- és vízmelegítő rendszerekhez a DIN 1988 alapján, High-Flow átmosatóva, 3/4 \"flowjet\" átmosató elzáró szerelvénnyel, korrózióvédelemmel ellátva, 4,0 bar légoldali előfeszítéssel, zöld színben, felszerelve, rögzítőfüllel, REFLEX gyártmányú, \"Refix DD\" típusú, 10 bar/50°C vagy ezzel egyenértékű"]
[52,"K-tétel","Refix DD 8 jelű, 8 literes, csz.:7308000",2,"db",0,0,0,0]
[]
[null,null,"Változó nyomású zárt tágulási tartály ivóvizes-, nyomásemelő- és vízmelegítő rendszerekhez a DIN 1988 alapján, High-Flow átmosatóva, 1 1/4 \"flowjet\" átmosató elzáró szerelvénnyel, korrózióvédelemmel ellátva, 4,0 bar légoldali előfeszítéssel, zöld színben, felszerelve, REFLEX gyártmányú, \"DT\" típusú, 10 bar/50°C vagy ezzel egyenértékű"]
[53,"K-tétel","DT 300 jelű, 300 literes, csz.:739205",1,"db",0,0,0,0]
[]
[null,null,"Kétoldalon menetes vagy roppantógyűrűs szerelvény elhelyezése, külső vagy belső menettel, illetve hollandival csatlakoztatva DN 25 biztonsági szerelvény"]
[54,"82-001-7.4.9-0722393","Flamco Prescor B 1\" biztonsági szelep 6 bar Rendelési szám: 29005",3,"db",0,0,0,0]
[]
[null,null,"Fűtés-, klíma-, hűtéstechnika nedvestengelyű standard (átkapcsolható) szivattyúk elhelyezése és bekötése egyes szivattyúk (HMV) karimás kötéssel, DN 32-40"]
[55,"82-008-3.1.3.4.1-0150667","Grundfos UPS 32-60/2 FB 1x230V, Nedvestengelyű keringetőszivattyú bronz házzal használati melegvíz rendszerekhez, 190 W",1,"db",0,0,0,0]
[]
[56,"82-008-3.1.3.4.1-0150669","Grundfos UPS 32-120/2 FB 1x230V, Nedvestengelyű keringetőszivattyú bronz házzal használati melegvíz rendszerekhez, 380 W",1,"db",0,0,0,0]
[]
[null,null,"Vizes szerelvények kiegészítő tartozékainak elhelyezése, nyomásmérő / manométer (nyomásszabályzó szelep, biztonsági szelep, stb. a 82-001 tételcsoportban)"]
[57,"82-002-11.1-0343031","Honeywell nyomásmérő/manométer, alsó csatlakozású, 63mm-es , 1/4\", külső menetes, 0..10bar, PN25, max40°C, M39M-A10",3,"db",0,0,0,0]
[]
[null,null,"Kétoldalon menetes vagy roppantógyűrűs szerelvény elhelyezése, külső vagy belső menettel, illetve hollandival csatlakoztatva DN 32 gömbcsap, víz- és gázfőcsap"]
[58,"82-001-7.5.2-0130606","MOFÉM AHA Univerzális gömbcsap 5/4\" bb. menettel, vízátbocsátás 330 l/min., névleges méret 32 mm, sárgaréz, natúr, 10 bar, Kód: 113-0051-00",3,"db",0,0,0,0]
[]
[null,null,"DN 40 gömbcsap, víz- és gázfőcsap"]
[59,"82-001-7.6.2-0130607","MOFÉM AHA Univerzális gömbcsap 6/4\" bb. menettel, vízátbocsátás 590 l/min., névleges méret 40 mm, sárgaréz, natúr, 10 bar, Kód: 113-0052-00",4,"db",0,0,0,0]
[]
[null,null,"DN 50, DN 65 gömbcsap, víz- és gázfőcsap"]
[60,"82-001-7.7.2-0130608","MOFÉM AHA Univerzális gömbcsap 2\" bb. menettel, vízátbocsátás 890 l/min., névleges méret 50 mm, sárgaréz, natúr, 10 bar, Kód: 113-0053-00",14,"db",0,0,0,0]
[]
[null,null,"Kétoldalon menetes vagy roppantógyűrűs szerelvény elhelyezése, külső vagy belső menettel, illetve hollandival csatlakoztatva DN 32 szelepek, csappantyúk (szabályzó, folytó-elzáró, beavatkozó)"]
[61,"82-001-7.5.1-0334256","Viega Easytop visszacsapó szelep, vörösöntvény, PN 16, NA 32 (1 1/2) Cikkszám: 471 217",1,"db",0,0,0,0]
[]
[null,null,"DN 40 szelepek, csappantyúk (szabályzó, folytó-elzáró, beavatkozó)"]
[62,"82-001-7.6.1-0334257","Viega Easytop visszacsapó szelep, vörösöntvény, PN 16, NA 40 (1 3/4) Cikkszám: 471 224",1,"db",0,0,0,0]
[]
[null,null,"DN 50, DN 65 szelepek, csappantyúk (szabályzó, folytó-elzáró, beavatkozó)"]
[63,"82-001-7.7.1-0334258","Viega Easytop visszacsapó szelep, vörösöntvény, PN 16, NA 50 (2 3/8) Cikkszám: 471 231",1,"db",0,0,0,0]
[]
[null,null,"Kétoldalon menetes vagy roppantógyűrűs szerelvény elhelyezése, külső vagy belső menettel, illetve hollandival csatlakoztatva DN 20 szelepek, csappantyúk (szabályzó, folytó-elzáró, beavatkozó)"]
[64,"82-001-7.3.1-0114012","TA STAD BB beszabályozó szelep PN 20 mérőcsonkkal, DN 20, ürítéssel, Cikkszám: 52-151-220",1,"db",0,0,0,0]
[]
[null,null,"Kétoldalon menetes vagy roppantógyűrűs szerelvény elhelyezése, külső vagy belső menettel, illetve hollandival csatlakoztatva DN 50, DN 65 szelepek, csappantyúk (szabályzó, folytó-elzáró, beavatkozó)"]
[65,"82-001-7.7.1-0114006","TA STAD BB beszabályozó szelep PN 20 mérőcsonkkal, DN 50, Cikkszám: 52-151-050",1,"db",0,0,0,0]
[]
[null,null,"Kétoldalon menetes vagy roppantógyűrűs szerelvény elhelyezése, külső vagy belső menettel, illetve hollandival csatlakoztatva DN 15 gömbcsap, víz- és gázfőcsap"]
[66,"82-001-7.2.2-0130114","MOFÉM golyós ürítőcsap 1/2\" vízátbocsátás 24 l/min. 10 bar, sárgaréz, natúr, Kód: 113-0047-00",4,"db",0,0,0,0]
[]
[null,null,"Hőmérő elhelyezése, egyenes hőmérő, kicsi"]
[67,"82-005-17.1.1-0123241","NELKE-WATTS Bimetál hőmérő 1/2\", 0-120°C 63 mm átmérővel, 42 mm benyúlással, kerek alukeretes előlappal, T 63/50, 03.01.040",4,"db",0,0,0,0]
[]
[null,null,"Kondenzátum semlegesítő",{"$nulls":4},{"$f":"IF(D201=0,\"\",D201*F201)","v":""},{"$f":"IF(D201=0,\"\",D201*G201)","v":""}]
[68,"K-tétel","Neutrakon/Typ 04/B; 500kW kazánteljesítményig",1,"db",0,0,0,0]
[]
[null,null,"VIZESBLOKKOK CSŐVEZETÉK SZERELÉSI MUNKÁI                                                                                                   A központi vizesblokkok vízellátás-csatornázás csővezeték szerelési munkái, az alábbi tartalommal:                                      - átm.16-20-25-ös méretű Uponor MLCP típ. vízvezetékek, idomokkal, csőtartóval                                                                - vízvezetékek szigetelése TUBOLIT DG típ. hőszigeteléssel, 9-13mm vast.                                                                          - átm.40-63mm méretű KA-PVC csatorna vezetékek, idomokkal, csőtartóval                                                                                  - NÁ15-25 méretű szakaszoló és elzáró szerelvények                                - termosztatikus keverő szelep                                                                      - cirkulációs szelep                                                                                       - padlóösszefolyó"]
[69,"K-tétel",null,170,"m2",0,0,0,0]
[]
[null,null,"CSŐVEZETÉKEK ÉS SZIGETELÉS CSATORNÁZÁSI CSŐVEZETÉKEK                                              PVC-KGEM lefolyóvezeték szerelése, tokos, gumigyűrűs kötésekkel, cső elhelyezése csőidomokkal, szakaszos tömörségi próbával, szabadon, csőtartókkal, DN 100"]
[70,"K-tétel","PIPELIFE PVC-U tömörfalú tokos csatornacső 110x3,2x1000 mm SN4, KGEM110/1M-EN",40,"m",0,0,0,0]
[]
[null,null,"DN 125"]
[71,"K-tétel","PIPELIFE PVC-U tömörfalú tokos csatornacső 125x3,2x1000 mm SN4, KGEM125/1M-EN",12,"m",0,0,0,0]
[]
[null,null,"DN 150"]
[72,"K-tétel","PIPELIFE PVC-U tömörfalú tokos csatornacső 160x4,0x1000 mm SN4, KGEM160/1M-EN",30,"m",0,0,0,0]
[]
[null,null,"PE polietilén lefolyócső szerelése csőtartókkal, szakaszos tömörségi próbával, - 80 °C tartós, 95°C rövid ideig tartó hőmérséklet tűréssel- földárokban elektrokarmantyús kötésekkel, csőidomokkal együtt, csőátmérő DN 100 méret felett, DN 110"]
[73,"K-tétel","PIPELIFE cső PE-HD DN110 5m, VD110H-5M",75,"m",0,0,0,0]
[]
[null,null,"DN 160"]
[74,"K-tétel","PIPELIFE cső PE-HD DN160 5m, VD160H-5M",5,"m",0,0,0,0]
[]
[null,null,"VÍZVEZETÉKI CSŐVEZETÉKEK                                                             Víz- és fűtési vezeték, Rozsdamentes acélcső szerelése, préselt csőkötésekkel, cső elhelyezése csőidomokkal, szakaszos nyomáspróbával, szabadon, horonyba vagy padlócsatornába, DN 12 - DN 50, DN 20"]
[75,"K-tétel","Viega Sanpress cső, 1.4521 rozsdamentes, 6 m-es szálban, ivóvízellátáshoz, 22 x 1,2 Cikkszám: 616 014",6,"m",0,0,0,0]
[]
[null,null,"DN 25"]
[76,"K-tétel","Viega Sanpress cső, 1.4521 rozsdamentes, 6 m-es szálban, ivóvízellátáshoz, 28 x 1,2 Cikkszám: 616 021",25,"m",0,0,0,0]
[]
[null,null,"DN 32"]
[77,"K-tétel","Viega Sanpress cső, 1.4521 rozsdamentes, 6 m-es szálban, ivóvízellátáshoz, 35 x 1,5 Cikkszám: 616 038",27,"m",0,0,0,0]
[]
[null,null,"DN 40"]
[78,"K-tétel","Viega Sanpress cső, 1.4521 rozsdamentes, 6 m-es szálban, ivóvízellátáshoz, 42 x 1,5 Cikkszám: 616 045",55,"m",0,0,0,0]
[]
[null,null,"DN 50"]
[79,"K-tétel","Viega Sanpress cső, 1.4521 rozsdamentes, 6 m-es szálban, ivóvízellátáshoz, 54 x 1,5 Cikkszám: 616 557",60,"m",0,0,0,0]
[]
[null,null,"DN 65 - DN 100, DN 65"]
[80,"K-tétel","Viega Sanpress XL cső, 1.4521 rozsdamentes, 6 m-es szálban, ivóvízellátáshoz, 76,1 x 2,0 Cikkszám: 616 571",40,"m",0,0,0,0]
[]
[null,null,"SZIGETELÉS HIDEGVÍZ VEZETÉKRE                                              Fűtési, HMV, HHV vezetékek szigetelése (ívek, idomok, szerelvények szigetelése és burkolás nélkül), polietilén csőhéjjal csupasz kivitelben, ragasztással illetve hőlégfúvással hegesztve, öntapadó ragasztó szalag lezárással, vagy klipsszel rögzítve, NÁ 114 mm csőátmérőig"]
[81,"80-001-1.3.2.1.1-0125666","Armacell Tubolit DG csőhéj, falvastagság: 9 mm, külső csőátmérő 35 mm, R: DG-35/9",11,"m",0,0,0,0]
[]
[82,"80-001-1.3.2.1.1-0125668","Armacell Tubolit DG csőhéj, falvastagság: 9 mm, külső csőátmérő 42 mm, R: DG-42/9",38,"m",0,0,0,0]
[]
[83,"80-001-1.3.2.1.1-0125671","Armacell Tubolit DG csőhéj, falvastagság: 9 mm, külső csőátmérő 54 mm, R: DG-54/9",41,"m",0,0,0,0]
[]
[null,null,"SZIGETELÉS MELEGVÍZ VEZETÉKRE                                          Fűtési, HMV, HHV vezetékek szigetelése (ívek, idomok, szerelvények szigetelése és burkolás nélkül), polietilén csőhéjjal csupasz kivitelben, ragasztással illetve hőlégfúvással hegesztve, öntapadó ragasztó szalag lezárással, vagy klipsszel rögzítve, NÁ 114 mm csőátmérőig"]
[84,"80-001-1.3.2.1.1-0125624","Armacell Tubolit DG csőhéj, falvastagság: 13 mm, külső csőátmérő 22 mm, R: DG-22/13",5,"m",0,0,0,0]
[]
[85,"80-001-1.3.2.1.1-0125625","Armacell Tubolit DG csőhéj, falvastagság: 13 mm, külső csőátmérő 28 mm, R: DG-28/13",21,"m",0,0,0,0]
[]
[86,"80-001-1.3.2.1.1-0125626","Armacell Tubolit DG csőhéj, falvastagság: 13 mm, külső csőátmérő 35 mm, R: DG-35/13",16,"m",0,0,0,0]
[]
[87,"80-001-1.3.2.1.1-0125631","Armacell Tubolit DG csőhéj, falvastagság: 13 mm, külső csőátmérő 42 mm, R: DG-42/13",23,"m",0,0,0,0]
[]
[88,"80-001-1.3.2.1.1-0125634","Armacell Tubolit DG csőhéj, falvastagság: 13 mm, külső csőátmérő 54 mm, R: DG-54/13",19,"m",0,0,0,0]
[]
[null,null,"TANTERMEK KLÍMA CSEPPVÍZ ELVEZETÉSE Padló alatti illetve falba süllyeszthető bűzelzáró, padló feletti vagy falba süllyeszthető elhelyezése"]
[89,"82-009-21.2-0135119","HL138, Klímaszifon falba süllyesztve kondenzvíz és cseppgyűjtéshez DN32 függőleges kimenettel. A kiszáradás esetén is bűzzáró (kettős működésű) bűzzár-kazetta kihúzható, és tisztítható, vagy cserélhető. Bemenete {átmérő} 20 - 32mm-es csővel vagy tömlővel. A beépítőház a végleges beépítési mélységre állítható. Min beépítési mélység 60mm",24,"db",0,0,0,0]
[]
[null,null,"PVC lefolyóvezeték szerelése, ragasztott kötésekkel, cső elhelyezése csőidomokkal, szakaszos tömörségi próbával, falhoronyba vagy padlócsatornába (horonyvésés külön tételben), DN 25"]
[90,"K-tétel","PIPELIFE PVC-U sima lefolyócső",85,"m",0,0,0,0]
[]
[null,null,"DN 32"]
[91,"81-002-3.1.1.1.2-0131112","PIPELIFE PVC-U sima lefolyócső 32x1,8x2000 mm, KAGL032/2M",125,"m",0,0,{"$f":"IF(D265=0,\"\",D265*F265)","v":0},{"$f":"IF(D265=0,\"\",D265*G265)","v":0}]
[]
[null,null,"TŰZVÉDELMI BERENDEZÉSEK ÉS SZAKIPARI MUNKÁK Tűzvédelmi mandzsetták elhelyezése műanyag csövekhez, gipszkarton, beton vagy tégla felületen, 40 - 315 mm átmérő között, födém áttöréseknél (a födém alsó síkjánál)"]
[92,"81-011-2.1-0312002","Tűzbiztonság 2000 - tűzvédelmi csőmandzsetta 63 mm",10,"db",0,0,0,0]
[]
[93,"81-011-2.1-0312006","Tűzbiztonság 2000 - tűzvédelmi csőmandzsetta 110 mm",54,"db",0,0,0,0]
[]
[94,"81-011-2.1-0312009","Tűzbiztonság 2000 - tűzvédelmi csőmandzsetta 160 mm",1,"db",0,0,0,0]
[]
[null,null,"Tűzvédelmi PUR-grafit, kis és közepes nyílások tűzvédelmi lezárására"]
[95,"K-tétel","Hilti CP 620 310ml kiszerelés",20,"db",0,0,0,0]
[]
[null,null,"Áttörés vezetékek részére, helyreállítással, 0,1 m2/db méretig, tégla válaszfalban"]
[96,"33-062-1.1",null,30,"db",0,0,0,0]
[]
[null,null,"felmenő téglafalban, 25-38 cm vastagság között"]
[97,"33-062-1.2.1",null,10,"db",0,0,0,0]
[]
[null,null,"felmenő téglafalban,"]
[98,"K-tétel","38 cm vastagság felett",3,"db",0,0,0,0]
[]
[null,null,"Lyukfúrás vasbetonba, 50-100 mm átmérő között"]
[99,"K-tétel","átmérő 100mm méretben",10,"m",0,0,0,0]
[]
[null,null,"Horonyvésés, téglafalban, 24,01-50,00 cm2 keresztmetszet között, helyreállítással"]
[100,"33-063-3.2.4",null,180,"m",0,0,0,0]
[]
[null,null,"Víz,- csatornaszerelési munkák próbái, vízvezetéki lefolyórendszer tömörségi próbája"]
[101,"K-tétel",null,1,"klt.",0,0,0,0]
[]
[null,null,"vízvezetéki nyomórendszer nyomáspróbája"]
[102,"K-tétel",null,1,"klt.",0,0,0,0]
[]
[null,null,"vezetékrendszer fertőtlenítése"]
[103,"K-tétel",null,1,"klt.",0,0,0,0]
[]
[null,null,"Víz,- csatornaszerelési munkák átadás-átvételi eljárásával kapcsolatos költségek átadási dokumentáció készítés"]
[104,"K-tétel",null,1,"klt.",0,0,0,0]
[]
[null,null,"átadási eljárás lefolytatása"]
[105,"K-tétel",null,1,"klt.",0,0,0,0]
[]
[null,null,"kezelési utasítás készítés"]
[106,"K-tétel",null,1,"klt.",0,0,0,0]
[]
[null,null,"kezelésre vonatkozó kioktatás"]
[107,"K-tétel",null,1,"klt.",0,0,0,0]
[]
[null,null,"Negatív vízminta, ÁNTSZ engedély beszerzésével"]
[108,"K-tétel",null,1,"klt",0,0,0,0]
[]
[{"$nulls":7},{"$f":"SUM(H3:H314)","v":0},{"$f":"SUM(I3:I314)","v":0}]

{"sheet":"I. ÜTEM - FŰTÉS","index":2,"n_rows":315,"n_cols":9,"rows_kept":315,"headers":{"header":["VERESEGYHÁZI KATOLIKUS GIMNÁZIUM 2112 Veresegyház, Fő út 117-125., hrsz.: 58 AJÁNLATADÁSI TERV","","2017.08.11."],"footer":["TEVIM Kft."]}}
["No.","  Azonosító","  Szöveg","Mennyiség","Egys.","Anyagár","Óradij","xAnyagár","xÓradij"]
[]
[null,null,"Föld- vagy PB gáz tüzelésű, melegvízüzemű, alumínium öntvény kazán elhelyezése, bekötése, 80,01-120 kW teljesítmény között"]
[1,"K-tétel","Hoval TopGas Classic 100 típ.                                                                  Fali kondenzációs gázkazán 19,1 - 90,4 kW teljesítmény cikkszám: 7014 584                                                           Kondenzációs technikával Korrózióálló öntött alumínium ötvözetből készült hőcserélővel                                                       Felszereltség: -- Nyomásmérő -- víznyomás határoló vízhiány biztosításhoz -- Égéstermék-hőmérsékletérzékelő határoló funkcióval -- Automatikus légtelenítő Rozsdamentes acélból készült előkeveréses felületi égő -- folyamatos égőszabályozás, gáz/levegő arányszabályozással -- automatikus gyújtás -- ionizációs lángőrzés -- gáznyomáskapcsoló Minimális átfolyási vízmennyiség szükséges (lásd Műszaki adatok fejezet) Fali kondenzációs gázkazán, acéllemez burkolattal, fehér színben Kazán alapvezérlés N4.1 BIC 335 típusú tüzelésvezérlő automatika felügyeleti egységgel Modulált égőszabályozás Főkapcsoló I/O Üzemállapot- és zavarjelzés Csatlakozás külső gázszelephez és zavarjelző kimenethez",2,"db",0,0,{"$f":"IF(D4=0,\"\",D4*F4)","v":0},{"$f":"IF(D4=0,\"\",D4*G4)","v":0}]
[{"$nulls":8},{"$f":"IF(D5=0,\"\",D5*G5)","v":""}]
[null,null,"Időjáráskövető kazán és fűtésköri szabályzás. TopTronic® E ZE1 fűtésszabályozó-szett G04 típusú kazán alapvezérlés kiegészítéseként (beépíthető). TopTronic® E kezelőegység Érintőképernyő; 4,3 coll Egyszerű, intuitív kezelési koncepció A legfontosabb működési állapotok kijelzése Beállítható kezdőképernyő Működési mód kiválasztása Beállítható napi és heti programok Az összes csatlakoztatott Hoval CAN-bus modul kezelése Üzembe helyezési segédlet Szerviz- és karbantartási funkciók Zavarjelzés Elemző funkció Időjárás kijelző (online opciónál) Fűtési stratégia illesztése időjárás-előrejelzés alapján (online opciónál) TopTronicR E hőtermelő-alapmodul (TTE-WEZ) . Beépített fűtésszabályozó -- 1 közvetlen fűtési körhöz -- 1 kevertkörhöz -- HMV-termeléshez -- Bivalens- és kaszkádmenedzsmenthez . Rast5 alap csatlakozo készlet . Külső érzékelő . Merulő érzékelő (HMV-termelő érzékelő) . Előremenő hőmérseklet-érzékelő . ZE1 kábelcsoport a TopTronicR E fűtésszabályozó és a kazánvezérlés összekapcsolásához"]
[2,"K-tétel",null,2,null,0,0,0,0]
[]
[null,null,"GLT Modul 0-10 V/OT (OpenTherm) (épületfelügyeleti rendszer) Kazánok vezérléséhez épületfelügyeleti rendszerrel összekapcsolva Hőmérséklet-szabályozás külsőleg 0-10 V 0 - 1,0 V nincs követés 1,0 - 9,5 V ...... 0 °C - 100 °C A kazán-kapcsolótáblába beépíthető!"]
[3,"K-tétel",null,2,"db",0,0,0,0]
[]
[null,null,"Változó nyomású zárt tágulási tartály fűtési és hűtési rendszerek számára, nem cserélhető membránnal, maximális hőmérséklet a membránon 70°C, 1,5 bar légoldali előfeszítéssel, gyári tartozékkal, felszerelve, REFLEX \"NG\" típusú, 6 bar/120°C"]
[4,"K-tétel","NG  8 j.  8 literes",3,"db",0,0,0,0]
[]
[5,"K-tétel","NG  200 j.  200 literes",1,"db",0,0,0,0]
[]
[null,null,"Gyorscsatlakozó szelep avatatlan elzárás elleni biztosítással, ürítő csonkkal, 10 bar/120°C, felszerelve, REFLEX gyártmányú, \"SU\" típusú"]
[6,"K-tétel","SU 3/4\" x 3/4\"             RX 7613000",1,"db",0,0,0,0]
[]
[null,null,"Gyorscsatlakozó szelep avatatlan elzárás elleni biztosítással, ürítő csonkkal, 10 bar/120°C, felszerelve, REFLEX gyártmányú, \"SU\" típusú"]
[7,"K-tétel","SU 1\" x 1\"             RX 7613100",1,"db",0,0,0,0]
[]
[null,null,"Kétoldalon menetes vagy roppantógyűrűs szerelvény elhelyezése, külső vagy belső menettel, illetve hollandival csatlakoztatva DN 20 biztonsági szerelvény"]
[8,"82-001-7.3.8-0722333","Flamco Prescor 3/4\" x 3/4\" membrános biztonsági szelep max. 140 °C, 3 bar, Rendelési szám: 27025",2,"db",0,0,0,0]
[]
[null,null,"Kétoldalon menetes vagy roppantógyűrűs szerelvény elhelyezése, külső vagy belső menettel, illetve hollandival csatlakoztatva DN 40 biztonsági szerelvény"]
[9,"82-001-7.6.9-0722336","Flamco Prescor S 600 6/4\" membrános biztonsági szelep max. 140°C, 3 bar Rendelési szám: 29521",1,"db",0,0,0,0]
[]
[null,null,"Egyedi kialakítású osztó- vagy gyűjtőcső elhelyezése, előre kiépített támasztó szerkezetre, bekötések és szerelvények nélkül, 10 bar nyomásig,"]
[10,"K-tétel","NÁ200 méretű acélcsőből kialakítva, l=330cm hosszú, 7 db fűtési kör számára kialakított csatlakozással(NÁ50-65-50-65-32-50-50), DN125 primer oldali csatlakozással, 500mm osztás távolsággal",2,"db",0,0,0,0]
[]
[null,null,"Spiroterm gyártmányú iszapleválasztó Csatlakozás: Karimás Kivitel: Acél ház Üzemi nyomás: 10 bar"]
[11,"K-tétel","Spirotrap BE125F - NA125",1,"db",0,0,0,0]
[]
[null,null,"Spiroterm gyártmányú mikrobuborék-leválasztó, Csatlakozás: Karimás Kivitel: Acél ház Üzemi nyomás: 10 bar"]
[12,"K-tétel","Spirovent BA125F - NA125",1,"db",0,0,0,0]
[]
[null,null,"Fűtés-, klíma-, hűtéstechnika nedvestengelyű nagyhatásfokú szabályozott szivattyú, menetes vagy karimás kötéssel, egyes szivattyúk, DN 100"]
[13,"K-tétel","Grundfos MAGNA1 100-80 F 450 1x230V PN6, Szabályozott nedvestengelyű keringetőszivattyú, A-energiaosztály, karimás csz.: GR97924221",1,"db",0,0,0,0]
[]
[null,null,"nagyhatásfokú szabályozott szivattyú, menetes vagy karimás kötéssel, egyes szivattyúk, DN 25"]
[14,"K-tétel","Grundfos MAGNA1 25-60 1x230V, Szabályozott nedvestengelyű keringetőszivattyú, A-energiaosztály, menetes csz.:GR97924154",1,"db",0,0,0,0]
[]
[null,null,"DN 30/32"]
[15,"K-tétel","Grundfos MAGNA1 32-60 1x230V, Szabályozott nedvestengelyű keringetőszivattyú, A-energiaosztály, menetes csz.:GR97924163",2,"db",0,0,0,0]
[]
[16,"K-tétel","Grundfos MAGNA3 32-100 F 220 1x230V PN6/10, Szabályozott nedvestengelyű keringetőszivattyú, A-energiaosztály, AUTOADAPT funkcióval, karimás",1,"db",0,0,0,0]
[]
[17,"82-008-3.1.4.1.2-0150801","Grundfos MAGNA3 32-120 F 220 1x230V PN6/10, Szabályozott nedvestengelyű keringetőszivattyú, A-energiaosztály, AUTOADAPT funkcióval, karimás",1,"db",0,0,0,0]
[]
[null,null,"Kétoldalon menetes vagy roppantógyűrűs szerelvény elhelyezése, külső vagy belső menettel, illetve hollandival csatlakoztatva DN 32 gömbcsap, víz- és gázfőcsap"]
[18,"82-001-7.5.2-0130606","MOFÉM AHA Univerzális gömbcsap 5/4\" bb. menettel, vízátbocsátás 330 l/min., névleges méret 32 mm, sárgaréz, natúr, 10 bar, Kód: 113-0051-00",4,"db",0,0,0,0]
[]
[null,null,"DN 50, DN 65 gömbcsap, víz- és gázfőcsap"]
[19,"82-001-7.7.2-0130608","MOFÉM AHA Univerzális gömbcsap 2\" bb. menettel, vízátbocsátás 890 l/min., névleges méret 50 mm, sárgaréz, natúr, 10 bar, Kód: 113-0053-00",18,"db",0,0,0,0]
[]
[null,null,"Karima közé építhető szerelvény elhelyezése ellenkarimákkal, DN 65  PN 40-ig pillangószelep"]
[20,"82-001-5.7.7-0140382","MVV-ISG gumibélésű pillangószelep EPDM kézikarral, PN 16 DN  65",9,"db",0,0,0,0]
[]
[null,null,"Karima közé építhető szerelvény elhelyezése ellenkarimákkal, DN 125  PN 25-ig pillangószelep"]
[21,"82-001-5.10.7-0140385","MVV-ISG gumibélésű pillangószelep EPDM kézikarral, PN 16 DN 125",7,"db",0,0,0,0]
[]
[null,null,"DN 65  PN 40-ig szelepek, csappantyúk (szabályzó, beavatkozó)"]
[22,"82-001-5.7.3-0140507","MVV-ISG RETURNVENT visszacsapószelep, bronzházzal, vízre, PN 6-16 DN 65",2,"db",0,0,0,0]
[]
[null,null,"Kétoldalon menetes vagy roppantógyűrűs szerelvény elhelyezése, külső vagy belső menettel, illetve hollandival csatlakoztatva DN 15 szelepek, csappantyúk (szabályzó, folytó-elzáró, beavatkozó)"]
[23,"82-001-7.2.1-0114001","TA STAD BB beszabályozó szelep PN 20 mérőcsonkkal, DN 15, Cikkszám: 52-151-014",4,"db",0,0,0,0]
[{"$nulls":7},{"$f":"IF(D68=0,\"\",D68*F68)","v":""}]
[null,null,"DN 20 szelepek, csappantyúk (szabályzó, folytó-elzáró, beavatkozó)",{"$nulls":5},{"$f":"IF(D69=0,\"\",D69*G69)","v":""}]
[24,"82-001-7.3.1-0114002","TA STAD BB beszabályozó szelep PN 20 mérőcsonkkal, DN 20, Cikkszám: 52-151-020",5,"db",0,0,0,0]
[]
[null,null,"DN 25 szelepek, csappantyúk (szabályzó, folytó-elzáró, beavatkozó)"]
[25,"82-001-7.4.1-0114003","TA STAD BB beszabályozó szelep PN 20 mérőcsonkkal, DN 25, Cikkszám: 52-151-025",1,"db",0,0,0,0]
[]
[null,null,"DN 32 szelepek, csappantyúk (szabályzó, folytó-elzáró, beavatkozó)"]
[26,"82-001-7.5.1-0114004","TA STAD BB beszabályozó szelep PN 20 mérőcsonkkal, DN 32, Cikkszám: 52-151-032",2,"db",0,0,0,0]
[]
[null,null,"Kétoldalon menetes vagy roppantógyűrűs szerelvény elhelyezése, külső vagy belső menettel, illetve hollandival csatlakoztatva DN 25 szelepek, csappantyúk (szabályzó, folytó-elzáró, beavatkozó)"]
[27,"K-tétel","TBV-CM 25 NF szabályozó és beszabályozó szelep 1\",",1,"db",0,0,0,0]
[]
[28,"82-001-7.4.1-0113883","TA STAP nyomáskülönbség-szabályozó szelep PN 16 DN 25, beállítási tartomány: 10-60 kPa, Cikkszám: 52-265-025",1,"db",0,0,0,0]
[]
[null,null,"DN 40 szelepek, csappantyúk (szabályzó, folytó-elzáró, beavatkozó)"]
[29,"82-001-7.6.1-0113891","TA STAP nyomáskülönbség-szabályozó szelep PN 16 DN 40, beállítási tartomány: 10-40 kPa, Cikkszám: 52-265-140",1,"db",0,0,0,0]
[]
[null,null,"Három- vagy négyoldalon menetes vagy roppantógyűrűs szerelvény elhelyezése, külső vagy belső menettel, illetve hollandival csatlakoztatva DN 10-15"]
[30,"82-001-13.1-0324185","SIEMENS VXG44.15-4, Kétutú külső menetes szabályozószelep, 5.5 mm szelepszár elmozdulással, DN15 kvs=4, javasolt ALG153 csatlakozó hollandi a beépítéshez, PN16, Alkalmazható szelepmozgatók: SSY319, SQS35.., SQS65.., SQS85... Keverő és osztó alkalmazásban is használhatók!, Csz.: VXG44.15-4",1,"db",0,0,0,0]
[]
[null,null,"DN 25"]
[31,"82-001-13.3-0324187","SIEMENS VXG44.25-10, Kétutú külső menetes szabályozószelep, 5.5 mm szelepszár elmozdulással, DN25 kvs=10, javasolt ALG253 csatlakozó hollandi a beépítéshez, PN16, Alkalmazható szelepmozgatók: SSY319, SQS35.., SQS65.., SQS85... Keverő és osztó alkalmazásban is használhatók!, Csz.: VXG44.25-10",1,"db",0,0,0,0]
[]
[null,null,"Két- és háromjáratú szelepekhez, elektrotermikus és elektromotoros hajtóművek elhelyezése, elektromos bekötés nélkül"]
[32,"82-001-14.1-0324265","SIEMENS SQS35.53, 5,5mm szelepszár elmozdulású szelepmozgató motor, 3-pont működés, 35sec futásidő, AC230V, rugós visszatérítéssel, IP54, Csz.:SQS35.53",2,"db",0,0,0,0]
[]
[null,null,"Kétoldalon menetes vagy roppantógyűrűs szerelvény elhelyezése, külső vagy belső menettel, illetve hollandival csatlakoztatva DN 15 gömbcsap, víz- és gázfőcsap"]
[33,"82-001-7.2.2-0130525","MOFÉM kazántöltőcsap 1/2\" névleges méret 15 mm, sárgaréz, natúr, 16 bar, Kód: 113-0010-00",10,"db",0,0,0,0]
[]
[null,null,"Manométer elhelyezése, lemezházas"]
[34,"82-005-16.2-0120122","Manométer lemezházas, M 20 x 1,5 menettel 1,6 % pontossággal PM 1012 típus, átmérő 100 mm Méréshatár: 0-4.0;0-6.0;0-10;0-16;0-25 bar",10,"db",0,0,0,0]
[]
[null,null,"Hőmérő elhelyezése, könyök hőmérő, kicsi"]
[35,"82-005-17.2.1-0213706","Védőszerelvényes ipari hőmérő, MSZ 11210/2-72 kis könyök hőmérő 0 C-tól 160 C 63 mm benyúlással",10,"db",0,0,0,0]
[]
[null,null,"Egyoldalon menetes szerelvény elhelyezése, külső vagy belső menettel, illetve hollandival csatlakoztatva DN 15 légtelenítőszelep, kifolyó- és locsolószelep, töltőszelep"]
[36,"82-001-6.2.8-0722155","Flamco Flexvent Super 1/2\" úszós légtelenítő max. 120°C , 10 bar, elzáróelemmel Rendelési szám: 28520",4,"db",0,0,0,0]
[]
[null,null,"Egyoldalon menetes szerelvény elhelyezése, külső vagy belső menettel, illetve hollandival csatlakoztatva DN 15 légtelenítőszelep, kifolyó- és locsolószelep, töltőszelep"]
[37,"82-001-6.2.8-0722153","Flamco Flexvent 1/2\" úszós légtelenítő max. 120 °C, 10 bar, elzáróelemmel, Rendelési szám: 27740",6,"db",0,0,0,0]
[]
[null,null,"Légedény elhelyezése és bekötése, tartószerkezet beépítésével, 159x4,5 mm - 350 mm 219x6,3 mm - 400 mm"]
[38,"82-004-9.3-0460534","Kettős légedény F-65 típus 159x4,5 mm",3,"db",0,0,0,0]
[]
[null,null,"Fűtési vezeték, Ötrétegű cső szerelése, PE-RT/Alu/PE-RT anyagból, kiegészítők elhelyezése, fűtési osztó - gyűjtő szerelése 3 áramkörig"]
[39,"81-004-1.3.2.4.1.1-0332532","Uponor H osztó-gyűjtő, 1\", 3 kör - 172 mm, Cikkszám: 1012878",1,"db",0,0,0,0]
[]
[null,null,"6 áramkörig"]
[40,"81-004-1.3.2.4.1.2-0332534","Uponor H osztó-gyűjtő, 1\", 5 kör - 272 mm, Cikkszám: 1012880",2,"db",0,0,0,0]
[]
[41,"81-004-1.3.2.4.1.2-0332535","Uponor H osztó-gyűjtő, 1\", 6 kör - 322 mm, Cikkszám: 1012881",2,"db",0,0,0,0]
[]
[null,null,"6 áramkör fölött"]
[42,"81-004-1.3.2.4.1.3-0332536","Uponor H osztó-gyűjtő, 1\", 7 kör - 372 mm, Cikkszám: 1012882",3,"db",0,0,0,0]
[]
[null,null,"Padlófűtés, Ötrétegű cső szerelése, PE-RT/Al/PE-RT, PE-RT/EVOH/PE-RT anyagú, osztó-gyűjtő egység komplett, tartókonzolra szerelve, végelemmel, légtelenítővel, töltőürítővel, körönként tartóval, szeleppel, csatlakozó csavarzat nélkül, 6 körig"]
[43,"81-005-1.5.2.4.1.1-0333341","Uponor Vario Plus osztó-gyűjtő áramlásmérővel, 4 körös - 212 mm, Cikkszám: 1030584",3,"db",0,0,0,0]
[]
[44,"81-005-1.5.2.4.1.1-0333342","Uponor Vario Plus osztó-gyűjtő áramlásmérővel, 6 körös - 300 mm, Cikkszám: 1030585",2,"db",0,0,0,0]
[]
[45,"81-005-1.5.2.4.1.1-0333340","Uponor Vario Plus osztó-gyűjtő körkiegészítő áramlásmérővel, 1 körös - 50 mm, Cikkszám: 1042471",1,"db",0,0,0,0]
[]
[null,null,"kiegészítő elemek elhelyezése, osztó - gyűjtő tartozékok és szerelvények elhelyezése, menetes kötéssel csatlakoztatva"]
[46,"81-005-1.5.2.6.3-0333343","Uponor Vario Plus osztó-gyűjtő tartó, hőmérővel, légtelenítővel, töltő-ürítővel,by-pass elemmel, Cikkszám: 1009209",6,"db",0,0,{"$f":"IF(D132=0,\"\",D132*F132)","v":0},0]
[{"$nulls":8},{"$f":"IF(D133=0,\"\",D133*G133)","v":""}]
[null,null,"Három- vagy négyoldalon menetes vagy roppantógyűrűs szerelvény elhelyezése, külső vagy belső menettel, illetve hollandival csatlakoztatva DN 25"]
[47,"82-001-13.3-0324163","SIEMENS VXI46.25, DN25 kétutú váltószelep, nyit/zár működés, 2,5mm szelepszár elmozdulás, belső menetes kialakítás, PN16, Csz.:VXI46.25",1,"db",0,0,0,0]
[]
[null,null,"Kétoldalon menetes vagy roppantógyűrűs szerelvény elhelyezése, külső vagy belső menettel, illetve hollandival csatlakoztatva DN 25 szelepek, csappantyúk (szabályzó, folytó-elzáró, beavatkozó)"]
[48,"82-001-7.4.1-0324153","SIEMENS VVI46.25, DN25 egyutú zónaszelep, nyit/zár működés, 2,5mm szelepszár elmozdulás, belső menetes kialakítás, PN16, Csz.:VVI46.25",3,"db",0,0,0,0]
[]
[null,null,"Két- és háromjáratú szelepekhez, elektrotermikus és elektromotoros hajtóművek elhelyezése, elektromos bekötés nélkül"]
[49,"82-001-14.1-0324252","SIEMENS STA23, 2,5mm szelepszár elmozdulású termoelektromos szelepmozgató motor VVI46.. és VXI46.. típusú szelepekhez és VD.. VE.. radiátorszelepekhez, 2-pont működés, hangtalan üzem, elmozdulás kijelzés, 2-3 perc futásidő, AC230V, Csz.: STA23",4,"db",0,0,0,0]
[]
[null,null,"Elektromos kapcsoló-berendezések elhelyezése, elektromos bekötés nélkül, hőmérséklet kapcsoló (szobatermosztát)"]
[50,"82-013-11.5-0324002","SIEMENS RAA21, mechanikus szobatermosztát, külső forgatógombbal (fűtés vagy hűtés szabályozására, kb.1K kapcsolási különbség, standard kivitel), Csz.:RAA21",4,"db",0,0,0,0]
[]
[null,null,"Padlófűtés, Ötrétegű cső szerelése, PE-RT/Al/PE-RT, PE-RT/EVOH/PE-RT anyagú, kiegészítő elemek elhelyezése, falba süllyeszthető vagy falsík elé építhető horganyzott acéllemez szekrények, kőműves munka nélkül"]
[51,"81-005-1.5.2.6.4-0333365","Uponor Vario osztószekrény, falon kívüli 820x555mm, Cikkszám: 1046996",6,"db",0,0,0,0]
[]
[52,"81-005-1.5.2.6.4-0333367","Uponor Vario osztószekrény, falon kívüli 820x785mm, Cikkszám: 1046998",4,"db",0,0,0,0]
[]
[53,"81-005-1.5.2.6.4-0333368","Uponor Vario osztószekrény, falon kívüli 820x950mm, Cikkszám: 1046999",1,"db",0,0,0,0]
[]
[null,null,"Padlófűtés, Térhálósított polietilén cső (PE-Xa) szerelése, 9,9x1,1; 14x2,0; 16x2,0; 17x2,0 mm-es fűtőcsőből, fektetés lépésálló sík szigetelőlemezre, csőrögzítő tüskével, osztás: 0,15 m"]
[54,"81-005-1.2.1.4.2-0333401","Uponor Comfort PLUS PE-Xa fűtési cső, 17x2,0 mm, 120 m-es tekercsben, PN6, Cikkszám: 1034535",220,"m2",0,0,0,0]
[]
[null,null,"osztás: 0,20 m"]
[55,"81-005-1.2.1.4.3-0333401","Uponor Comfort PLUS PE-Xa fűtési cső, 17x2,0 mm, 120 m-es tekercsben, PN6, Cikkszám: 1034535",300,"m2",0,0,0,0]
[]
[null,null,"Acéllemez kompakt lapradiátor elhelyezése, széthordással, tartókkal, bekötéssel, 2 soros, 1600 mm-ig, 600 mm"]
[56,"82-012-3.2.1.4-0425754","D-ÉG Dunaferr LUX-UNI univerzális hat csatl.lapradiátor DK (22 típus), 2-soros, 2 konvektorlemezes, burkolattal, 600x 400 mm, fűtőteljesítmény:  648 W",1,"db",0,0,0,0]
[]
[57,"82-012-3.2.1.4-0425756","D-ÉG Dunaferr LUX-UNI univerzális hat csatl.lapradiátor DK (22 típus), 2-soros, 2 konvektorlemezes, burkolattal, 600x 600 mm, fűtőteljesítmény:  973 W",1,"db",0,0,0,0]
[]
[58,"82-012-3.2.1.4-0425757","D-ÉG Dunaferr LUX-UNI univerzális hat csatl.lapradiátor DK (22 típus), 2-soros, 2 konvektorlemezes, burkolattal, 600x 700 mm, fűtőteljesítmény: 1135 W",2,"db",0,0,0,0]
[]
[59,"82-012-3.2.1.4-0425759","D-ÉG Dunaferr LUX-UNI univerzális hat csatl.lapradiátor DK (22 típus), 2-soros, 2 konvektorlemezes, burkolattal, 600x 900 mm, fűtőteljesítmény: 1459 W",3,"db",0,0,0,0]
[]
[60,"82-012-3.2.1.4-0425760","D-ÉG Dunaferr LUX-UNI univerzális hat csatl.lapradiátor DK (22 típus), 2-soros, 2 konvektorlemezes, burkolattal, 600x1000 mm, fűtőteljesítmény: 1621 W",4,"db",0,0,0,0]
[]
[61,"82-012-3.2.1.4-0425761","D-ÉG Dunaferr LUX-UNI univerzális hat csatl.lapradiátor DK (22 típus), 2-soros, 2 konvektorlemezes, burkolattal, 600x1100 mm, fűtőteljesítmény: 1783 W",11,"db",0,0,0,0]
[]
[62,"82-012-3.2.1.4-0425762","D-ÉG Dunaferr LUX-UNI univerzális hat csatl.lapradiátor DK (22 típus), 2-soros, 2 konvektorlemezes, burkolattal, 600x1200 mm, fűtőteljesítmény: 1945 W",4,"db",0,0,0,0]
[]
[63,"82-012-3.2.1.4-0425763","D-ÉG Dunaferr LUX-UNI univerzális hat csatl.lapradiátor DK (22 típus), 2-soros, 2 konvektorlemezes, burkolattal, 600x1300 mm, fűtőteljesítmény: 2107 W",9,"db",0,0,0,0]
[]
[64,"82-012-3.2.1.4-0425765","D-ÉG Dunaferr LUX-UNI univerzális hat csatl.lapradiátor DK (22 típus), 2-soros, 2 konvektorlemezes, burkolattal, 600x1500 mm, fűtőteljesítmény: 2432 W",4,"db",0,0,0,0]
[]
[65,"82-012-3.2.1.4-0425766","D-ÉG Dunaferr LUX-UNI univerzális hat csatl.lapradiátor DK (22 típus), 2-soros, 2 konvektorlemezes, burkolattal, 600x1600 mm, fűtőteljesítmény: 2594 W",14,"db",0,0,0,0]
[]
[null,null,"900 mm"]
[66,"82-012-3.2.1.6-0426054","D-ÉG Dunaferr LUX-UNI univerzális hat csatl.lapradiátor DK (22 típus), 2-soros, 2 konvektorlemezes, burkolattal, 900x 400 mm, fűtőteljesítmény:  907 W",2,"db",0,0,0,0]
[]
[67,"82-012-3.2.1.6-0426055","D-ÉG Dunaferr LUX-UNI univerzális hat csatl.lapradiátor DK (22 típus), 2-soros, 2 konvektorlemezes, burkolattal, 900x 500 mm, fűtőteljesítmény: 1134 W",1,"db",0,0,0,0]
[]
[68,"82-012-3.2.1.6-0426056","D-ÉG Dunaferr LUX-UNI univerzális hat csatl.lapradiátor DK (22 típus), 2-soros, 2 konvektorlemezes, burkolattal, 900x 600 mm, fűtőteljesítmény: 1360 W",1,"db",0,0,0,0]
[]
[69,"82-012-3.2.1.6-0426057","D-ÉG Dunaferr LUX-UNI univerzális hat csatl.lapradiátor DK (22 típus), 2-soros, 2 konvektorlemezes, burkolattal, 900x 700 mm, fűtőteljesítmény: 1587 W",2,"db",0,0,0,0]
[]
[70,"82-012-3.2.1.6-0426058","D-ÉG Dunaferr LUX-UNI univerzális hat csatl.lapradiátor DK (22 típus), 2-soros, 2 konvektorlemezes, burkolattal, 900x 800 mm, fűtőteljesítmény: 1814 W",6,"db",0,0,0,0]
[]
[71,"82-012-3.2.1.6-0426059","D-ÉG Dunaferr LUX-UNI univerzális hat csatl.lapradiátor DK (22 típus), 2-soros, 2 konvektorlemezes, burkolattal, 900x 900 mm, fűtőteljesítmény: 2040 W",1,"db",0,0,0,0]
[]
[72,"82-012-3.2.1.6-0426061","D-ÉG Dunaferr LUX-UNI univerzális hat csatl.lapradiátor DK (22 típus), 2-soros, 2 konvektorlemezes, burkolattal, 900x1100 mm, fűtőteljesítmény: 2494 W",1,"db",0,0,0,0]
[]
[73,"82-012-3.2.1.6-0426064","D-ÉG Dunaferr LUX-UNI univerzális hat csatl.lapradiátor DK (22 típus), 2-soros, 2 konvektorlemezes, burkolattal, 900x1400 mm, fűtőteljesítmény: 3174 W",4,"db",0,0,0,0]
[{"$nulls":7},{"$f":"IF(D196=0,\"\",D196*F196)","v":""}]
[null,null,"3 soros, 1600 mm-ig, 300 mm",{"$nulls":5},{"$f":"IF(D197=0,\"\",D197*G197)","v":""}]
[74,"82-012-3.3.1.1-0425196","D-ÉG Dunaferr LUX-UNI univerzális hat csatl.lapradiátor DKEK (33 típus), 3-soros 3 konvektorlemezes, burkolattal, 300x1600 mm, fűtőteljesítmény: 2131 W",6,"db",0,0,0,0]
[]
[null,null,"600 mm"]
[75,"82-012-3.3.1.4-0425796","D-ÉG Dunaferr LUX-UNI univerzális hat csatl.lapradiátor DKEK (33 típus), 3-soros 3 konvektorlemezes, burkolattal, 600x1600 mm, fűtőteljesítmény: 3643 W",3,"db",0,0,0,0]
[]
[null,null,"900 mm"]
[76,"82-012-3.3.1.6-0426088","D-ÉG Dunaferr LUX-UNI univerzális hat csatl.lapradiátor DKEK (33 típus), 3-soros 3 konvektorlemezes, burkolattal, 900x 800 mm, fűtőteljesítmény: 2474 W",1,"db",0,0,0,0]
[]
[77,"82-012-3.3.1.6-0426092","D-ÉG Dunaferr LUX-UNI univerzális hat csatl.lapradiátor DKEK (33 típus), 3-soros 3 konvektorlemezes, burkolattal, 900x1200 mm, fűtőteljesítmény: 3710 W",1,"db",0,0,0,0]
[]
[null,null,"Fűtési vezeték, Fekete acélcső szerelése, hegesztett kötésekkel, tartószerkezettel, szakaszos nyomáspróbával, szabadon, horonyba vagy padlócsatornába, irányváltozás csőhajlítással, DN 25"]
[78,"81-004-1.4.1.1.1.4-0110013","Fekete acélcső MSZ 120/1 A 37X 1\" simavégű",10,"m",0,0,0,0]
[]
[null,null,"DN 32"]
[79,"81-004-1.4.1.1.1.5-0110016","Fekete acélcső MSZ 120/1 A 37X 5/4\" simavégű",65,"m",0,0,0,0]
[]
[null,null,"irányváltozás csőhajlítással, DN 40"]
[80,"81-004-1.4.1.1.1.6-0110019","Fekete acélcső MSZ 120/1 A 37X 6/4\" simavégű",30,"m",0,0,0,0]
[]
[null,null,"DN 50"]
[81,"81-004-1.4.1.1.1.7-0110022","Fekete acélcső MSZ 120/1 A 37X 2\" simavégű",90,"m",0,0,0,0]
[]
[null,null,"irányváltozás csőívvel, csőátmérő DN 100 méretig, DN 65"]
[82,"81-004-1.4.1.1.2.1.3-0134261","Acélcső MSZ 29-86 A 37  76,1x2,9 mm",90,"m",0,0,0,0]
[]
[null,null,"csőátmérő DN 100 méret felett, DN 125"]
[83,"81-004-1.4.1.1.2.2.1-0134421","Acélcső MSZ 29-86 A 37  133,0x4,0 mm",80,"m",0,0,0,0]
[]
[null,null,"DN 250"]
[84,"81-004-1.4.1.1.2.2.4-0134642","Acélcső MSZ 29,szavatolt min. A 37  273,0x7,1 mm",10,"m",0,0,0,0]
[]
[null,null,"Ötrétegű cső szerelése, PE-RT/Alu/PE-RT anyagból, préshüvelyes kötésekkel, cső elhelyezése csőidomokkal együtt, szakaszos nyomáspróbával, falhoronyba vagy padlószerkezetbe, (horonyvésés külön tételben) DN 12-ig"]
[85,"K-tétel","Uponor Uni Pipe MLC ötrétegű cső, tekercsben, 16x2 mm, Cikkszám: 1013371",750,"m",0,0,0,0]
[]
[null,null,"DN 15"]
[86,"K-tétel","Uponor Uni Pipe MLC ötrétegű cső, tekercsben, 20x2,25 mm, Cikkszám: 1013388",500,"m",0,0,0,0]
[]
[null,null,"DN 25"]
[87,"K-tétel","Uponor Uni Pipe MLC ötrétegű cső, tekercsben, 32x3 mm, Cikkszám: 1013401",240,"m",0,0,0,0]
[]
[null,null,"DN 32"]
[88,"K-tétel","Uponor MLCP ötrétegű cső, szálban, 40x4 mm, Cikkszám: 1013446",10,"m",0,0,0,0]
[]
[null,null,"Fűtési, HMV, HHV vezetékek szigetelése (ívek, idomok, szerelvények szigetelése és burkolás nélkül), polietilén csőhéjjal csupasz kivitelben, ragasztással illetve hőlégfúvással hegesztve, öntapadó ragasztó szalag lezárással, vagy klipsszel rögzítve, NÁ 114 mm csőátmérőig"]
[89,"80-001-1.3.2.1.1-0125623","Armacell Tubolit DG csőhéj, falvastagság: 13 mm, külső csőátmérő 18 mm, R: DG-18/13",750,"m",0,0,0,0]
[]
[90,"80-001-1.3.2.1.1-0125624","Armacell Tubolit DG csőhéj, falvastagság: 13 mm, külső csőátmérő 22 mm, R: DG-22/13",500,"m",0,0,0,0]
[]
[91,"80-001-1.3.2.1.1-0125828","Armacell Tubolit DG csőhéj, falvastagság: 20 mm, külső csőátmérő 35 mm, R: DG-35/20",240,"m",0,0,0,0]
[]
[92,"80-001-1.3.2.1.1-0125830","Armacell Tubolit DG csőhéj, falvastagság: 20 mm, külső csőátmérő 42 mm, R: DG-42/20",10,"m",0,0,0,0]
[]
[null,null,"Fűtési, HMV, HHV vezetékek szigetelése (ívek, idomok, szerelvények szigetelése és burkolás nélkül), kőzetgyapot csőhéjjal kasírozott kivitelben, horganyzott acélhuzal felerősítéssel az illesztések öntapadó alufólia csíkkal történő lezárásával, NÁ 108 mm csőátmérőig"]
[93,"80-001-1.2.1.2.1-0091904","ROCKWOOL Pipo alufóliával kasírozott kőzetgyapot csőhéj, belső átmérő: 35 mm, falvastagság: 25 mm",10,"m",0,0,0,0]
[]
[94,"80-001-1.2.1.2.1-0091906","ROCKWOOL Pipo alufóliával kasírozott kőzetgyapot csőhéj, belső átmérő: 42 mm, falvastagság: 25 mm",65,"m",0,0,0,0]
[]
[95,"80-001-1.2.1.2.1-0091908","ROCKWOOL Pipo alufóliával kasírozott kőzetgyapot csőhéj, belső átmérő: 49 mm, falvastagság: 25 mm",30,"m",0,0,0,0]
[]
[96,"80-001-1.2.1.2.1-0091909","ROCKWOOL Pipo alufóliával kasírozott kőzetgyapot csőhéj, belső átmérő: 60 mm, falvastagság: 25 mm",90,"m",0,0,0,0]
[]
[97,"80-001-1.2.1.2.1-0091910","ROCKWOOL Pipo alufóliával kasírozott kőzetgyapot csőhéj, belső átmérő: 76 mm, falvastagság: 25 mm",90,"m",0,0,0,0]
[{"$nulls":7},{"$f":"IF(D260=0,\"\",D260*F260)","v":""}]
[null,null,"NÁ 108 mm csőátmérő felett",{"$nulls":5},{"$f":"IF(D261=0,\"\",D261*G261)","v":""}]
[98,"80-001-1.2.1.2.2-0091935","ROCKWOOL Pipo alufóliával kasírozott kőzetgyapot csőhéj, belső átmérő: 133 mm, falvastagság: 30 mm",80,"m",0,0,0,0]
[]
[null,null,"kasírozott kivitelben, horganyzott acélhuzal felerősítéssel az illesztések öntapadó alufólia csíkkal történő lezárásával, NÁ 108 mm csőátmérő felett"]
[99,"80-001-1.2.1.2.2-0097819","PAROC kőzetgyapot csőhéj szigetelés, üvegszálerősítésű ALU-kasírozással, belső átmérő: 273 mm, falvastagság: 50 mm",10,"m",0,0,0,0]
[]
[null,null,"Acélfelületek mázolásának előkészítő és részmunkái; kézi rozsdamentesítés, cső és regisztercső felületén, (80 NÁ-ig), függesztő és tartószerkezeten, állványzaton, könnyű rozsdásodás esetén"]
[100,"47-000-4.4.5.1-0120509","Supralux lakkbenzin higító, EAN: 5992454205023",375,"m",0,0,0,0]
[]
[null,null,"Korróziógátló alapozás cső és regisztercső felületén (NÁ 80-ig), függesztőn és tartóvason, sormosdó állványzaton, műgyanta kötőanyagú, oldószertartalmú festékkel"]
[101,"47-021-12.4.1-0131032","Supralux Koralkyd korroziógátló alapozó, vörös, EAN: 5992451106033",375,"m",0,0,0,0]
[]
[null,null,"Acélfelületek közbenső festése cső és regisztercső felületén (NÁ 80-ig), függesztőn és tartóvason, sormosdó állványzaton műgyanta kötőanyagú, oldószeres festékkel"]
[102,"47-021-21.4.1-0130821","Supralux alapozófesték, fehér, EAN:5992452511034",375,"m",0,0,0,0]
[]
[null,null,"Acélfelületek átvonó festése cső és regisztercső felületén (NÁ 80-ig), függesztőn és tartóvason, sormosdó állványzaton műgyanta kötőanyagú, oldószeres festékkel"]
[103,"47-021-31.4.1-0141705","Supralux Astralin zománcfesték, piros, EAN: 5992454793049",375,"m",0,0,0,0]
[]
[null,null,"Áttörés vezetékek részére, helyreállítással, 0,1 m2/db méretig, tégla válaszfalban"]
[104,"33-062-1.1-1110002","Kisméretű tömör tégla 250x120x65 mm I.o. Hf5-mc, falazó, cementes mészhabarcs",10,"db",0,0,0,0]
[]
[null,null,"felmenő téglafalban, 25-38 cm vastagság között"]
[105,"33-062-1.2.1-1110002","Kisméretű tömör tégla 250x120x65 mm I.o. Hf5-mc, falazó, cementes mészhabarcs",15,"db",0,0,0,0]
[]
[null,null,"Födémáttörés 30x30 cm méretig, 30 cm födémvastagságig, vasbetonlemez födémben"]
[106,"33-063-2.1.3",null,6,"db",0,0,0,0]
[]
[null,null,"Horonyvésés, téglafalban, 50,01-100,00 cm2 keresztmetszet között"]
[107,"33-063-3.2.5",null,40,"m",0,0,0,0]
[]
[null,null,"Központi fűtési rendszerekben használható inhibitor, vízkőképződés és korrózió megakadályozására. Spiroterm gyártmány"]
[108,"K-tétel","Sentinel X100/1 Inhibitor",1,"klt",0,0,0,0]
[]
[null,null,"Fűtési rendszer feltöltése, mobil sótalanítóval kezelt vízzel"]
[109,"K-tétel",null,1,"klt.",0,0,0,0]
[]
[null,null,"Kazánház, illetve hőközpont beszabályozása, beüzemelése 139.561-279.120 W teljesítmény között"]
[110,"82-016-12.5",null,1,"db",0,0,0,0]
[]
[null,null,"Próbafűtés, radiátorok beszabályozása 139.561-279.120 W teljesítmény között"]
[111,"82-016-13.5",null,1,"db",0,0,0,0]
[]
[null,null,"Fűtésszerelési munkák átadás-átvételi eljárásával kapcsolatos költségek, átadási dokumentáció készítés"]
[112,"K-tétel",null,4,"óra",0,0,0,0]
[]
[null,null,"átadási eljárás lefolytatása"]
[113,"K-tétel",null,4,"óra",0,0,0,0]
[]
[null,null,"kezelési utasítás készítése"]
[114,"K-tétel",null,4,"óra",0,0,0,0]
[]
[null,null,"kezelésre vonatkozó kioktatás"]
[115,"K-tétel",null,4,"óra",0,0,0,0]
[]
[{"$nulls":7},{"$f":"SUM(H4:H313)","v":0},{"$f":"SUM(I4:I313)","v":0}]

{"sheet":"I. ÜTEM - HŰTÉS","index":3,"n_rows":91,"n_cols":9,"rows_kept":91,"headers":{"header":["VERESEGYHÁZI KATOLIKUS GIMNÁZIUM 2112 Veresegyház, Fő út 117-125., hrsz.: 58 AJÁNLATADÁSI TERV","","2017.08.11."],"footer":["TAVIM Kft."]}}
["No.","  Azonosító","  Szöveg","Mennyiség","Egys.","Anyagár","Óradij","xAnyagár","xÓradij"]
[]
[null,null,"Változó tömegáramú (ipari) split klíma berendezés elhelyezése, inverteres, hőszivattyús modell, max. 36 beltéri egységre, hűtőteljesítmény: 45,0 kW, kültéri egység"]
[1,"K-tétel","Toshiba SMMS-e VRF kültéri egység MMY-MAP1606HT8P-E típ.",1,"db",0,0,{"$f":"IF(D4=0,\"\",D4*F4)","v":0},{"$f":"IF(D4=0,\"\",D4*G4)","v":0}]
[{"$nulls":8},{"$f":"IF(D5=0,\"\",D5*G5)","v":""}]
[null,null,"Változó tömegáramú (ipari) split klíma berendezés elhelyezése, inverteres, hőszivattyús modell, max. 45 beltéri egységre, hűtőteljesítmény: 56,0 kW, kültéri egység"]
[2,"K-tétel","Toshiba SMMS-e VRF kültéri egység MMY-MAP2006HT8P-E típ.",1,"db",0,0,0,0]
[]
[null,null,"beltéri egység Toshiba VRF oldalfali beltéri készülék infrás távirányítóval. 3. széria."]
[3,"K-tétel","MMK-AP 0073 H típusú oldalfali beltéri egység, hűtő-/fűtőteljesítmény: 2,2 kW / 2,5 kW",1,"db",0,0,0,0]
[]
[4,"K-tétel","MMK-AP 0093 H típusú oldalfali beltéri egység, hűtő-/fűtőteljesítmény: 2,8 kW / 3,2 kW",1,"db",0,0,0,0]
[]
[5,"K-tétel","MMK-AP 0123 H típusú oldalfali beltéri egység, hűtő-/fűtőteljesítmény: 3,6 kW / 4,0 kW",11,"db",0,0,0,0]
[]
[null,null,"beltéri egység Toshiba VRF burkolat nélküli beltéri készülék, külön kiírt fali távszabályozóval"]
[6,"K-tétel","MML-AP0124NH1-E típusú parapet beltéri egység, hűtő-/fűtőteljesítmény: 3,6 kW / 4,0 kW",15,"db",0,0,0,0]
[]
[null,null,"tartozékok és szabályozók Toshiba VRF, Y elágazó 18 kW alatti teljesítményhez"]
[7,"K-tétel","RBM-BY55E típ.",16,"db",0,0,0,0]
[]
[null,null,"Toshiba VRF, Y elágazó 18-37 kW alatti teljesítményhez"]
[8,"K-tétel","RBM-BY105E típ.",8,"db",0,0,0,0]
[]
[null,null,"Toshiba VRF, Y elágazó 37-71 kW alatti teljesítményhez"]
[9,"K-tétel","RBM-BY205E típ.",2,"db",0,0,0,0]
[]
[null,null,"Toshiba standard, vezetékes, fali távvezérlő beépített hőmérsékletérzékelővel, maximum 8 db beltéri üzemeltetésére"]
[10,"K-tétel","RBC-AMT32E típ.",6,null,0,0,0,0]
[]
[null,null,"Toshiba Digital Inverter félipari, oldalfali, split klímaberendezés szettben vezetékes, fali távvezérlővel"]
[11,"K-tétel","RAV-SM407KRTP-E /  RAV-SM404ATP-E típ. hűtő-/fűtőteljesítmény: 3,6 kW / 4,0 kW",2,"db",0,0,0,0]
[]
[12,"K-tétel","RAV-SM806KRT-E / RAV-SM804ATP-E típ. hűtő-/fűtőteljesítmény: 6,7 kW / 7,7 kW",1,"db",0,0,0,0]
[]
[null,null,"Tartózékok szerelése kültéri klímaberendezéshez, tartókonzol, kicsi/nagy",{"$nulls":4},{"$f":"IF(D36=0,\"\",D36*F36)","v":""}]
[13,"57-041-2.1.1-0383322","Kültéri klíma egység tartókonzol kicsi, 80 kg-ig",3,"db",0,0,0,0]
[]
[14,"57-035-15.6.1-0378135","Rezgéstompító gumibak KSE- 45",14,"db",0,0,0,0]
[]
[null,null,"Klíma csővezetékek és idomok szerelése, vörösréz csővezeték, kapilláris forrasztással, szabadon, horonyba vagy padlócsatornába szerelve, csőidomok és tartók nélkül, ámérő 42 mm-ig, átmérő 10 -12 mm"]
[15,"57-041-3.1.1.1.1.1-0388451","Vékonyfalú vörösrézcső, lágy, 9mm szigeteléssel átm. 6,0 x 1,0 mm",125,"m",0,0,0,0]
[]
[16,"57-041-3.1.1.1.1.1-0388452","Vékonyfalú vörösrézcső, lágy, 9mm szigeteléssel átm. 10,0 x 1,0 mm",150,"m",0,0,0,0]
[]
[17,"57-041-3.1.1.1.1.1-0388453","Vékonyfalú vörösrézcső, lágy, 9mm szigeteléssel átm. 12,0 x 1,0 mm",105,"m",0,0,0,0]
[]
[null,null,"átmérő 15-18 mm"]
[18,"57-041-3.1.1.1.1.2-0388433","Vékonyfalú vörösrézcső, kemény, l=5m szál átm. 16,0 x 1,0 mm",140,"m",0,0,0,0]
[]
[null,null,"átmérő 20-22 mm"]
[19,"57-041-3.1.1.1.1.3-0388435","Vékonyfalú vörösrézcső, kemény, l=5m szál átm. 22,0 x 1,0 mm",60,"m",0,0,0,0]
[]
[null,null,"átmérő 28 mm"]
[20,"57-041-3.1.1.1.1.4-0388437","Vékonyfalú vörösrézcső, kemény, l=5m szál átm. 28,0 x 1,5 mm",65,"m",0,0,0,0]
[]
[null,null,"Hűtő- és mélyhűtött, valamint klímatechnikai berendezések szerkezeti elemeinek és csővezetékeinek hőszigetelése (ívek, idomok, szerelvények szigetelése és burkolás nélkül), szintetikus gumi alapú kaucsuk csőhéjjal csupasz kivitelben, ragasztással, öntapadó ragasztó szalag lezárással, NÁ 108 mm csőátmérőig"]
[21,"80-004-1.4.1.1.1-0125036","Armacell AF/Armaflex csőhéj AF2, falvastagság: 11,5 mm, külső csőátmérő 18 mm, R: AF-2-018",140,"m",0,0,0,0]
[]
[22,"80-004-1.4.1.1.1-0125037","Armacell AF/Armaflex csőhéj AF2, falvastagság: 12,0 mm, külső csőátmérő 22 mm, R: AF-2-022",60,"m",0,0,0,0]
[]
[23,"80-004-1.4.1.1.1-0125039","Armacell AF/Armaflex csőhéj AF2, falvastagság: 12,5 mm, külső csőátmérő 28 mm, R: AF-2-028",65,"m",0,0,0,0]
[]
[null,null,"Hűtési rendszerek feltöltése R410A hűtőközeggel (ténylegesen kiépített csőhálózathossz alapján), a gyári hűtőközeg mennyiségen felül, a kiegészítő hűtőközeg mennyisége"]
[24,"K-tétel",null,33,"kg",0,0,0,0]
[]
[null,null,"Áttörés vezetékek részére, helyreállítással, 0,1 m2/db méretig, felmenő téglafalban, 25-38 cm vastagság között"]
[25,"33-062-1.2.1-1110002","Kisméretű tömör tégla 250x120x65 mm I.o. Hf5-mc, falazó, cementes mészhabarcs",13,"db",0,0,{"$f":"IF(D68=0,\"\",D68*F68)","v":0},0]
[{"$nulls":8},{"$f":"IF(D69=0,\"\",D69*G69)","v":""}]
[null,null,"felmenő téglafalban, 25-38 cm vastagság között"]
[26,"33-062-1.2.1-1110002","Kisméretű tömör tégla 250x120x65 mm I.o. Hf5-mc, falazó, cementes mészhabarcs",20,"db",0,0,0,0]
[]
[null,null,"Födémáttörés 30x30 cm méretig, 30 cm födémvastagságig, vasbetonlemez födémben"]
[27,"33-063-2.1.3",null,8,"db",0,0,0,0]
[]
[null,null,"Horonyvésés, téglafalban, 50,01-100,00 cm2 keresztmetszet között"]
[28,"33-063-3.2.5",null,40,"m",0,0,0,0]
[]
[null,null,"Split rendszerek szakcég általi beüzemelése próbaüzem, hűtőtechnológiai szerelések"]
[29,"K-tétel",null,1,"klt.",0,0,0,0]
[]
[null,null,"Hűtési rendszerek szivárgás vizsgálata, kiszállással, jegyzőkönyv és terv keszítéssel."]
[30,"K-tétel",null,1,"klt.",0,0,0,0]
[]
[null,null,"Hűtésszerelési munkák átadás-átvételi eljárásával kapcsolatos költségek, átadási dokumentáció készítés"]
[31,"K-tétel",null,1,"klt.",0,0,0,0]
[]
[null,null,"kezelésre vonatkozó kioktatás"]
[32,"K-tétel",null,1,"klt.",0,0,0,0]
[]
[{"$nulls":7},{"$f":"SUM(H3:H89)","v":0},{"$f":"SUM(I3:I89)","v":0}]

{"sheet":"I. ÜTEM - LÉGTECHNIKA","index":4,"n_rows":120,"n_cols":9,"rows_kept":120,"headers":{"header":["VERESEGYHÁZI KATOLIKUS GIMNÁZIUM 2112 Veresegyház, Fő út 117-125., hrsz.: 58 AJÁNLATADÁSI TERV","","2017.08.11."],"footer":["TEVIM Kft."]}}
["No.","  Azonosító","  Szöveg","Mennyiség","Egys.","Anyagár","Óradij","xAnyagár","xÓradij"]
[]
[null,null,"L01 - Légkezelő berendezés - (déli szárny vizesblokk):                        - Berendezés típusa: \tAIRVENT MultiPlex 42R típ.,                                - Befúvás légmennyisége:\t 3.500 m3/ó- 350Pa,                                                  - Elszívás légmennyisége:\t 3.500 m3/ó- 350Pa,                                           - Szellőző rendszer típusa:\t kiegyenlített,                                                      - Befújt levegő hőmérséklete:\t 20 °C,                                                    - Hővisszanyerés: \tvan, lemezes keresztáramú,                                            - Visszakeverés: \tnincs                                                                          - Szükséges fűtési teljesítmény (60/ 35 °C):\t 40,7 kW,                         - Villamos teljesítmény:\t 3x400V, P=2,5+2,5=5,0kW                              - alapkerettel, kondenzvíz szifonnal AIRVENT gyártmányú,"]
[1,"K-tétel","MultiPlex 42R típ. beltéri légkezelő",1,"ber.",0,0,{"$f":"IF(D4=0,\"\",D4*F4)","v":0},{"$f":"IF(D4=0,\"\",D4*G4)","v":0}]
[{"$nulls":8},{"$f":"IF(D5=0,\"\",D5*G5)","v":""}]
[null,null,"ZRUNEK gumilemez beépítése, légkezelő berendezés acél alapkerete és a födém közé, MAFUND-FURATLEMEZ típ. 500x250x25mm"]
[2,"K-tétel","csz.: 94-11-0350",6,"db",0,0,0,0]
[]
[null,null,"Kulisszás hangcsillapító négyszög keresztmetszettel, horganyzott acéllemez házban, üvegfátyollal kasírozott üveggyapotból készített kulisszákkal, AIRVENT RB 210 típusú, résszélesség 100 mm, kulisszavastagság 200 mm, L= 600 mm"]
[3,"K-tétel","B= 600 mm  H= 400 mm",2,"db",0,0,0,0]
[]
[null,null,"L= 960 mm"]
[4,"K-tétel","B= 600 mm  H= 400 mm",1,"db",0,0,0,0]
[]
[null,null,"L= 1420 mm"]
[5,"K-tétel","B= 600 mm  H= 400 mm",1,"db",0,0,0,0]
[]
[null,null,"Kulisszás hangcsillapító könyök négyszög keresztmetszettel, horganyzott acéllemez házban, horizontálisan szerelt üvegfátyollal kasírozott üveggyapotból készített kulisszákkal, AIRVENT RBV-H 210 típusú, résszélesség 100 mm, kulisszavastagság 200 mm,"]
[6,"K-tétel","B= 600mm H= 400mm Y=150mm Z=150mm",3,"db",0,0,0,0]
[]
[null,null,"Kör keresztmetszetű, csappantyú, pillangószelep, térfogat áram állandósító elem felszerelése, lemezcsatornára, NÁ 350 mm-ig"]
[7,"K-tétel","AIRVENT SPA-200 pillangószelep horg. acéllemezből, NÁ 200 mm",8,"db",0,0,0,0]
[]
[8,"K-tétel","AIRVENT SPA-250 pillangószelep horg. acéllemezből, NÁ 250 mm",6,"db",0,0,0,0]
[]
[null,null,"Kör keresztmetszetű, 90 percig hőálló tűzcsappantyú, horganyzott acélból, azbesztmentes zárólappal, Lindab gyártmány, 24V-os rugóvisszatérítésű mozgató motorral, végálláskapcsolókkal,"]
[9,"K-tétel","WH25-160-VSB (BLF24)",1,"db",0,0,0,0]
[]
[10,"K-tétel","WH25-200-VSB (BLF24)",2,"db",0,0,0,0]
[]
[null,null,"Négyszög keresztmetszetű, 120 percig hőálló tűzcsappantyú,  horganyzott acélból, Lindab gyártmány, 24V-os rugóvisszatérítésű mozgató motorral, végálláskapcsolókkal,"]
[11,"K-tétel","WK25-300x300-VSB (BLF24)",2,"db",0,0,0,0]
[]
[12,"K-tétel","WK25-500x300-VSB (BLF24)",2,"db",0,0,0,0]
[]
[13,"K-tétel","WK25-600x400-VSB (BLF24)",2,"db",0,0,{"$f":"IF(D36=0,\"\",D36*F36)","v":0},0]
[]
[null,null,"Egyéb befúvó és elszívó szerkezetek, kör vagy négyszög keresztmetszetű légszelep felszerelése lemezcsatornára, NÁ 350 mm-ig"]
[14,"83-002-4.1.1.1.1-0114562","AIRVENT KVP elszívó légszelep, acéllemezből, RAL 9010 festve, NÁ 100 mm",3,"db",0,0,0,0]
[]
[15,"83-002-4.1.1.1.1-0114563","AIRVENT KVP elszívó légszelep, acéllemezből, RAL 9010 festve, NÁ 125 mm",12,"db",0,0,0,0]
[]
[16,"83-002-4.1.1.1.1-0114564","AIRVENT KVP elszívó légszelep, acéllemezből, RAL 9010 festve, NÁ 160 mm",12,"db",0,0,0,0]
[]
[null,null,"Befúvó és elszívószerkezet elhelyezése, kör keresztmetszetű, mennyezetbe, külön tételben kiírt tartószerkezetre, NA 63- 355 mm között"]
[17,"57-015-4.1.2.2-0114513","AIRVENT TNC befúvó tányérszelep, acéllemezből, RAL 9010 festve, NÁ 125 mm",6,"db",0,0,0,0]
[]
[18,"57-015-4.1.2.2-0114514","AIRVENT TNC befúvó tányérszelep, acéllemezből, RAL 9010 festve, NÁ 160 mm",12,"db",0,0,0,0]
[]
[null,null,"Kör keresztmetszetű mennyezeti befúvók kiegészítő elemeinek felszerelése, NÁ 350 mm-ig"]
[19,"83-002-2.6.1-0114703","AIRVENT TLR befúvó doboz horizontális csonkkal, TSK, TNC, TSP, PET, PEF, RA elemekhez, hangszig.burkolattal, pillangószeleppel, NÁ 160 mm",12,"db",0,0,0,0]
[]
[null,null,"Kétsoros, aprólamellás anemosztát festett acéllemezből készült kerettel, festett extrudált alumínium lamellákkal, felszerelve, AIRVENT DH...E típusú, rejtett, rúgóklipszes rögzítéssel"]
[20,"K-tétel","DH-RU 200x100",5,"db",0,0,0,0]
[]
[null,null,"Négyzetbetétes, fixlamellás rács festett acéllemezből készült kerettel, festett alumínium rácsbetéttel, felszerelve, AIRVENT E5... E típusú, rejtett, rúgóklipszes rögzítéssel"]
[21,"K-tétel","E5-RU 200x100",3,"db",0,0,0,0]
[]
[null,null,"Szabályozó zsalu anemosztátok mögé szerelhető kivitelben, ellentétesen mozgó zsalulevelekkel, az anemosztát felől kezelhető állító és rögzítő szerkezettel, horganyzott acéllemezből (a zsalu anemosztát oldali felülete matt feketére festve), felszerelve, AIRVENT S típusú"]
[22,"K-tétel","S- 200-100",8,"db",0,0,0,0]
[]
[null,null,"Négyszög keresztmetszetű légcsatorna és idomaik szerelése, tartószerkezettel együtt, légcsatorna horganyzott acéllemezből, idomokkal együtt, lemezvastagság: 0,6 mm és 0,7 mm, 100-500 mm oldalhosszúság között"]
[23,"K-tétel","AEROPRODUKT VL egyenes légcsatorna és idom, horganyzott acéllemezből, 0,7 mm, 2,5 nyomásfokozat, oldalhossz:150-500 mm",25,"m2",0,0,0,0]
[]
[null,null,"lemezvastagság: 0,9 mm, 501-1000 mm oldalhosszúság között"]
[24,"K-tétel","AEROPRODUKT VL egyenes légcsatorna és idom, horganyzott acéllemezből, 0,9 mm, 2,5 nyomásfokozat, oldalhossz:501-1000 mm",40,"m2",0,0,0,0]
[]
[null,null,"Kör keresztmetszetű légcsatorna és idomaik szerelése, tartószerkezettel együtt, spirálkorcolt lemezcső, idomakkal, horganyzott acéllemezből, NÁ 63-150 mm között",{"$nulls":4},{"$f":"IF(D68=0,\"\",D68*F68)","v":""}]
[25,"K-tétel","AEROPRODUKT SPIKO spirálkorcolt lemezcső borda nélkül,idomokkal, horganyzott acéllemezből, v=0,7 mm, NÁ 125 mm",15,"m",0,0,0,{"$f":"IF(D69=0,\"\",D69*G69)","v":0}]
[]
[null,null,"spirálkorcolt lemezcső, horganyzott acéllemezből, NÁ 160-250 mm között"]
[26,"K-tétel","AEROPRODUKT SPIKO spirálkorcolt lemezcső borda nélkül,idomokkal, horganyzott acéllemezből, v=0,7 mm, NÁ 160 mm",60,"m",0,0,0,0]
[]
[null,null,"spirálkorcolt lemezcső, horganyzott acéllemezből, NÁ 160-250 mm között"]
[27,"K-tétel","AEROPRODUKT SPIKO spirálkorcolt lemezcső bordával, idomokkal, horganyzott acéllemezből, v=0,7 mm, NÁ 200 mm",40,"m",0,0,0,0]
[]
[28,"K-tétel","AEROPRODUKT SPIKO spirálkorcolt lemezcső bordával, horganyzott acéllemezből, v=0,7 mm, NÁ 250 mm, Csz.: APSPIKOB07250",23,"m",0,0,0,0]
[]
[null,null,"Kör keresztmetszetű légcsatorna és idomaik szerelése, tartószerkezet nélkül, hangcsillapított hajlítható lemezcső, alumínium lemezből, NÁ 63-150 mm között"]
[29,"83-001-2.14.1-0532222","AIRVENT SONODEC 25 kettősfalú hangszigetelt flexibilis cső, 25 mm-es szigeteléssel, NÁ 100 mm",3,"m",0,0,0,0]
[]
[30,"83-001-2.14.1-0532224","AIRVENT SONODEC 25 kettősfalú hangszigetelt flexibilis cső, 25 mm-es szigeteléssel, NÁ 125 mm",15,"m",0,0,0,0]
[]
[null,null,"NÁ 160-250 mm között"]
[31,"83-001-2.14.2-0532227","AIRVENT SONODEC 25 kettősfalú hangszigetelt flexibilis cső, 25 mm-es szigeteléssel, NÁ 160 mm",24,"m",0,0,0,0]
[]
[null,null,"Légtechnikai és szellőző berendezések vezetékeinek hő- és hangszigetelése (ívek, idomok, szerelvények szigetelése és burkolás nélkül), négyszög keresztmetszetű, szintetikus gumi alapú kaucsuk tekerccsel öntapadós kialakítással, csupasz kivitelben, öntapadó ragasztó szalag lezárással"]
[32,"80-005-1.2.4.1.2.1-0114184","Armacell Armaflex AF öntapadó lap tekercsben, falvastagság: 19 mm, R: AF-19MM/E-A",20,"m2",0,0,0,0]
[]
[null,null,"Tűzgátló szerkezeteken történő átvezetések, helyreállítása, 0,10 m2/db méretig,"]
[33,"K-tétel","tűzvédelmi tömítőmasszával",8,"db",0,0,0,0]
[]
[null,null,"Áttörés helyreállítással, 1 m2/db méretig felmenő téglafalban"]
[34,"K-tétel","38 cm vastagságig",6,"db",0,0,0,0]
[]
[null,null,"Légcsatorna hálózat és tartozékainak üzempróbái és beszabályozása, vezetékrendszer tömörségi vizsgálata"]
[35,"K-tétel",null,1,"klt.",0,0,0,0]
[]
[null,null,"Légcsatorna hálózat és tartozékainak üzempróbái és beszabályozása, szabályzó szerkezetek beszabályozása"]
[36,"K-tétel",null,1,"klt.",0,0,{"$f":"IF(D100=0,\"\",D100*F100)","v":0},0]
[]
[null,null,"légkezelő központ (klíma) üzempróbái és beszabályozása"]
[37,"K-tétel",null,1,"klt.",0,0,0,0]
[]
[null,null,"a teljes légtechnikai rendszer beszabályozása és 72 órás próbaüzeme"]
[38,"K-tétel",null,1,"klt.",0,0,0,0]
[]
[null,null,"Légtechnikai szerelési munkák átadás-átvételi eljárásával kapcsolatos költségek, átadási dokumentáció készítés."]
[39,"K-tétel",null,1,"klt.",0,0,0,0]
[]
[null,null,"átadási eljárás lefolytatása"]
[40,"K-tétel",null,1,"klt.",0,0,0,0]
[]
[null,null,"kezelési utasítás készítés"]
[41,"K-tétel",null,1,"klt.",0,0,0,0]
[]
[null,null,"kezeléssel kapcsolatos kioktatás"]
[42,"K-tétel",null,1,"klt.",0,0,0,0]
[]
[{"$nulls":7},{"$f":"SUM(H3:H118)","v":0},{"$f":"SUM(I3:I118)","v":0}]

{"sheet":"I. ÜTEM - GÁZELLÁTÁS","index":5,"n_rows":143,"n_cols":9,"rows_kept":143,"headers":{"header":["VERESEGYHÁZI KATOLIKUS GIMNÁZIUM 2112 Veresegyház, Fő út 117-125., hrsz.: 58 AJÁNLATADÁSI TERV","","2017.08.11."],"footer":["TEVIM Kft."]}}
["No.","  Azonosító","  Szöveg","Mennyiség","Egys.","Anyagár","Óradij","xAnyagár","xÓradij"]
[]
[null,null,"ÉPÜLETEN BELÜLI MUNKÁK                                                         Gázvezeték, Fekete acélcső szerelése, hegesztett kötésekkel, cső elhelyezése szakaszos nyomáspróbával, szabadon, tartószerkezettel, csőátmérő DN 100-méretig, DN 15-ig"]
[1,"81-003-1.2.1.1.1.1.1-0110007","Fekete acélcső, A 37X 1/2\" simavégű",5,"m",0,0,{"$f":"IF(D4=0,\"\",D4*F4)","v":0},{"$f":"IF(D4=0,\"\",D4*G4)","v":0}]
[{"$nulls":8},{"$f":"IF(D5=0,\"\",D5*G5)","v":""}]
[null,null,"DN 20"]
[2,"81-003-1.2.1.1.1.1.2-0110010","Fekete acélcső A 37X 3/4\" simavégű",5,"m",0,0,0,0]
[]
[null,null,"DN 65"]
[3,"81-003-1.2.1.1.1.1.7-0110025","Fekete acélcső MSZ 120/1 A 37X 2 1/2\" simavégű",15,"m",0,0,0,0]
[]
[null,null,"Acélfelületek mázolásának előkészítő és részmunkái; kézi rozsdamentesítés, cső és regisztercső felületén, (80 NÁ-ig), függesztő és tartószerkezeten, állványzaton, könnyű rozsdásodás esetén"]
[4,"47-000-4.4.5.1-0120509","Supralux lakkbenzin higító, EAN: 5992454205023",25,"m",0,0,0,0]
[]
[null,null,"Korróziógátló alapozás cső és regisztercső felületén (NÁ 80-ig), függesztőn és tartóvason, sormosdó állványzaton, műgyanta kötőanyagú, oldószertartalmú festékkel"]
[5,"47-021-12.4.1-0131032","Supralux Koralkyd korroziógátló alapozó, vörös, EAN: 5992451106033",25,"m",0,0,0,0]
[]
[null,null,"Acélfelületek közbenső festése cső és regisztercső felületén (NÁ 80-ig), függesztőn és tartóvason, sormosdó állványzaton műgyanta kötőanyagú, oldószeres festékkel"]
[6,"47-021-21.4.1-0130821","Supralux alapozófesték, fehér, EAN:5992452511034",25,"m",0,0,0,0]
[]
[null,null,"Acélfelületek átvonó festése cső és regisztercső felületén (NÁ 80-ig), függesztőn és tartóvason, sormosdó állványzaton műgyanta kötőanyagú, oldószeres festékkel"]
[7,"47-021-31.4.1-0141709","Supralux Astralin Univerzális magasfényű zománcfesték, sárga, EAN: 5992454794046",25,"m",0,0,0,0]
[]
[null,null,"Kétoldalon menetes vagy roppantógyűrűs szerelvény elhelyezése, külső vagy belső menettel, illetve hollandival csatlakoztatva DN 15 gömbcsap, víz- és gázfőcsap"]
[8,"82-001-7.2.2-0131011","MVV-ISG WKC1-GW gömbcsap szénacélból, belsőmenetes, gázra, PN 40 DN 15",2,"db",0,0,0,0]
[]
[null,null,"DN 20 gömbcsap, víz- és gázfőcsap"]
[9,"82-001-7.3.2-0131012","MVV-ISG WKC1-GW gömbcsap szénacélból, belsőmenetes, gázra, PN 40 DN 20",5,"db",0,0,0,0]
[]
[null,null,"Kétoldalon karimás szerelvény elhelyezése ellenkarimákkal, DN 65 PN 10 - PN 16, gömbcsap"]
[10,"82-001-2.16.2-0131051","MVV-ISG WKC1A gömbcsap szénacélból, karimás, gázra, PN 16 - PN 25 DN 65",1,"db",0,0,0,0]
[]
[null,null,"Készülékek víz- vagy gázoldali bekötése méretre vágható bordáscsővel, peremezhető cső hollandi csatlakozás készítése nélkül, gázoldali bekötés, inox bordáscsővel, DN 20"]
[11,"82-011-1.1.2.1.3-0240011","GEBO Variogas 3/4\" inox bordáscső gázra, 5 m-es tekercs, A01-0001-0697",1,"m",0,0,0,0]
[]
[null,null,"hollandis csatlakozás készítése, DN 20",{"$nulls":4},{"$f":"IF(D36=0,\"\",D36*F36)","v":""}]
[12,"82-011-1.1.2.2.3-0240206","GEBO 3/4\" hollandi + tömítés gázcsőre, A02-0010-1829",4,"db",0,0,0,0]
[]
[null,null,"Acél védőcső, falba, illetve födémbe építve"]
[13,"K-tétel","NA100, l=500mm",3,"db",0,0,0,0]
[]
[null,null,"Palackos kézi tűzoltókészülék falra szerelve, fém vagy műanyag függesztőre porral oltó 6-12 kg töltősúlyig"]
[14,"82-016-10.1.2-0210512","Csolnoki Szerelvénygyártó poroltó 12 kg-os ABC típus, Csz.: 05 0011 0120 03",1,"db",0,0,0,0]
[]
[15,"K-tétel","Belobbanásgátló gomba (kiszellőző gomba) 1/2\"",1,"db",0,0,0,0]
[]
[null,null,"KASZKÁD ÉGÉSTERMÉK-ELVEZETŐ ÉS ÉGÉSLEVEGŐ HOZZÁVEZETŐ RENDSZER KIALAKÍTÁSA AZ ALÁBBI ELEMEKBŐL: Kaszkád rendszerű, túlnyomásálló, égéstermék-elvezető, égéslevegő hozzávezető rendszer, Tricox EW-ALBI, nemesacél csőanyaggal, az alábbi elemekből összeépítve: FÜSTGÁZ ELVEZETÉS"]
[16,"K-tétel","átm.100/150-2x100mm szétválasztó adapter; TWIN38REM",2,"db",0,0,0,0]
[]
[17,"K-tétel","átm.100 nemesacél tisztító-ellenőrző idom; TN06549100",2,"db",0,0,0,0]
[]
[18,"K-tétel","átm.100 nemesacél egyenes cső, 250mm hosszban; TN0604100",2,"db",0,0,0,0]
[]
[19,"K-tétel","átm.100 nemesacél 45° ív idom; TN0619100",2,"db",0,0,0,0]
[]
[20,"K-tétel","átm.100 szilikon tömítőgyűrű; ALBI 26100",8,"db",0,0,0,0]
[]
[21,"K-tétel","átm.150-100 T-csatlakozó vízorral 45°-os idom; FU0615150100",2,"db",0,0,0,0]
[]
[22,"K-tétel","átm.150 nemesacél kondenzátum leválasztó idom; FU06110150",1,"db",0,0,0,0]
[]
[23,"K-tétel","átm.150 nemesacél zárófedél fogantyúval; FU44150",1,"db",0,0,0,0]
[]
[24,"K-tétel","átm.150 nemesacél egyenes cső, 250mm hosszban; FU0604150",1,"db",0,0,0,0]
[]
[25,"K-tétel","átm.150 nemesacél egyenes cső, 500mm hosszban; FU0603150",1,"db",0,0,0,0]
[]
[26,"K-tétel","átm.150 nemesacél egyenes cső, 1000mm hosszban; FU0602150",1,"db",0,0,{"$f":"IF(D68=0,\"\",D68*F68)","v":0},0]
[{"$nulls":8},{"$f":"IF(D69=0,\"\",D69*G69)","v":""}]
[27,"K-tétel","átm.150 nemesacél vizsgálóelem; ALBI0630150",1,"db",0,0,0,0]
[]
[28,"K-tétel","átm.150 átmeneti idom egyhéjúról hőszig. rendszerre; DWETN37150",1,"db",0,0,0,0]
[]
[29,"K-tétel","átm.150 könyök 87° idom támasztólábbal; DWETNAL57150",1,"db",0,0,0,0]
[]
[30,"K-tétel","átm.150 nemesacél hőszig. egyenes cső, 1000mm hosszban; DWETN13150",3,"db",0,0,0,0]
[]
[31,"K-tétel","átm.150 ferdetető átvezető elem 26°-35°; DWECO38150",1,"db",0,0,0,0]
[]
[32,"K-tétel","átm.150 véglezáró elem; DWETN32150",1,"db",0,0,0,0]
[]
[33,"K-tétel","Fali rögzítő elem, állítható, NÁ150+50mm; ZUWA.004D00.5560200",2,"db",0,0,0,0]
[]
[34,"K-tétel","Fali konzol, állítható faltávolság 50-150mm, NÁ150; DW01150",1,"db",0,0,0,0]
[]
[35,"K-tétel","átm.150 szilikon tömítőgyűrű; ALBI 26150",12,"db",0,0,0,0]
[]
[null,null,"ÉGÉSI LEVEGŐ BEVEZETÉS"]
[36,"K-tétel","átm.100 nemesacél egyenes cső, 250mm hosszban; TN0604100",2,"db",0,0,0,0]
[]
[37,"K-tétel","átm.100 nemesacél egyenes cső, 1000mm hosszban; FU0602150",2,"db",0,0,0,0]
[]
[38,"K-tétel","átm.100 nemesacél 87° könyök idom tisztítónyílással; FU0623100",2,"db",0,0,0,0]
[]
[39,"K-tétel","átm.100 nemesacél 45° ív idom; TN0619100",2,"db",0,0,0,0]
[]
[40,"K-tétel","átm.150-100 T-csatlakozó vízorral 45°-os idom; FU0615150100",2,"db",0,0,0,0]
[]
[41,"K-tétel","átm.150 nemesacél zárófedél fogantyúval; FU44150",1,"db",0,0,0,0]
[{"$nulls":7},{"$f":"IF(D100=0,\"\",D100*F100)","v":""}]
[42,"K-tétel","átm.150 nemesacél egyenes cső, 250mm hosszban; FU0604150",2,"db",0,0,0,0]
[]
[43,"K-tétel","átm.150 nemesacél egyenes cső, 500mm hosszban; FU0603150",1,"db",0,0,0,0]
[]
[44,"K-tétel","átm.150 nemesacél egyenes cső, 1000mm hosszban; FU0602150",5,"db",0,0,0,0]
[]
[45,"K-tétel","átm.150 nemesacél 87° könyök idom; FU0622150",1,"db",0,0,0,0]
[]
[46,"K-tétel","átm.150 ferdetető átvezető elem 26°-35°; DWECO38150",1,"db",0,0,0,0]
[]
[47,"K-tétel","átm.150 esővédő sapka; FU28150",1,"db",0,0,0,0]
[]
[null,null,"Légtechnikai és szellőző berendezések vezetékeinek hő- és hangszigetelése (ívek, idomok, szerelvények szigetelése és burkolás nélkül), négyszög keresztmetszetű, szintetikus gumi alapú kaucsuk tekerccsel öntapadós kialakítással, csupasz kivitelben, öntapadó ragasztó szalag lezárással"]
[48,"80-005-1.2.4.1.2.1-0114184","Armacell Armaflex AF öntapadó lap tekercsben, falvastagság: 19 mm, R: AF-19MM/E-A",5,"m2",0,0,0,0]
[]
[null,null,"Áttörés vezetékek részére, helyreállítással, 0,1 m2/db méretig, felmenő vasalt zsalukő falban, 26-40 cm vastagság között"]
[49,"33-062-1.4.3-3110002","Kisméretű tömör tégla 250x120x65 mm I.o. M 2,5 (Hf30-cm) falazó, meszes cementhabarcs",2,"db",0,0,0,0]
[]
[null,null,"Födémáttörés 30x30 cm méretig, 30 cm födémvastagságig, vasbetonlemez födémben"]
[50,"33-063-2.1.3",null,2,"db",0,0,0,0]
[]
[null,null,"Gázszerelési munkák próbái, gázvezetéki rendszer hatósági szilárdsági nyomáspróbája"]
[51,"K-tétel",null,8,"óra",0,0,0,0]
[]
[null,null,"gázvezetéki rendszer hatósági tömörségi nyomáspróbája"]
[52,"K-tétel",null,8,"óra",0,0,0,0]
[]
[null,null,"Gázszerelési munkák átadás-átvételi eljárásával kapcsolatos költségek, átadási dokumentáció készítése"]
[53,"K-tétel",null,4,"óra",0,0,0,0]
[]
[null,null,"átadási eljárás lefolytatása"]
[54,"K-tétel",null,4,"óra",0,0,{"$f":"IF(D132=0,\"\",D132*F132)","v":0},0]
[{"$nulls":8},{"$f":"IF(D133=0,\"\",D133*G133)","v":""}]
[null,null,"kezelési utasítás készítése"]
[55,"K-tétel",null,4,"óra",0,0,0,0]
[]
[null,null,"kezelésre vonatkozó kioktatás"]
[56,"K-tétel",null,4,"óra",0,0,0,0]
[]
[null,null,"Szakvélemények, hatósági engedélyek beszerzésével kapcsolatos költségek, kéményseprő szakvélemény"]
[57,"K-tétel",null,1,"db",0,0,0,0]
[]
[{"$nulls":7},{"$f":"SUM(H3:H141)","v":0},{"$f":"SUM(I3:I141)","v":0}]